Cogmind - Beta 16.1 --- EXPLORER MODE // 2026.04.20 @ 22:43:08 Player: Krysmphoenix Result: Escaped! Performance ------------- Evolutions (9) 4500 Regions Visited (22) 4400 Robots Destroyed (825) 4125 Value Destroyed (46463) 46463 Prototype IDs (87) 1740 Alien Tech Used (0) 0 Bonus (11850) 11850 TOTAL SCORE: 73078 Bonus ------- High Alert Combat Kills 1984 Follower Combat Kills 3768 Hunted by Unchained 500 Destroyed Unchained 1000 Entered DSFs 500 Network Hubs Disabled 800 Met Imprinter 300 Was Imprinted 300 Met R17 at Cetus 500 Win 3000 Friendly Fire -802 Cogmind --------- Core Integrity 1523/1600 Matter 217/300 Energy 199/280 System Corruption 19% Temperature Critical (941) Movement Treading (185) Ox1 Location To Epsilon Eridani Parts ------- > --- POWER (2) -------- Light Quantum Reactor Light Quantum Reactor (fused) > --- PROPULSION (6) --- Biometal Heavy Treads Biometal Heavy Treads Biometal Heavy Treads > --- UTILITY (10) ----- Advanced Cryofiber Web (fused) Advanced Cryofiber Web Advanced Heat Sink Advanced Heat Sink (fused) Advanced Heat Sink Huge Storage Unit Energy Filter (fused) Improved Weapon Cycler Advanced Phase Shifter (fused) Advanced Force Field > --- WEAPON (8) ------- Gatling Laser (fused) Gatling Laser Gatling Laser Gatling Laser Gatling Laser Gatling Laser (fused) Gatling Laser Fusion Bomb Launcher > --- INVENTORY (25) --- Light Quantum Reactor Light Quantum Reactor High-density Centrium Heavy Treads High-density Centrium Heavy Treads Advanced Power Amplifier Zionite Biocell Array (750) Advanced Gravity Neutralizer IFF Parser Energy Filter Advanced Particle Charger Advanced Transmission Jammer Cloaking Device Graphene Brace Advanced Force Field Gatling Laser Gatling Laser Gatling Laser Phase Gun Zionite Phaser-M Zionite Alpha Cannon Peak State ------------ > --- POWER ------------ Light Quantum Reactor Light Quantum Reactor > --- PROPULSION ------- Biometal Heavy Treads Biometal Heavy Treads Biometal Heavy Treads > --- UTILITY ---------- Advanced Cryofiber Web Advanced Heat Sink Advanced Heat Sink Huge Storage Unit Zionite Biocell Array Advanced Targeting Computer Energy Filter Improved Weapon Cycler Zionite Shade Armor Advanced Force Field > --- WEAPON ----------- Gatling Laser Gatling Laser Gatling Laser Gatling Laser Gatling Laser Gatling Laser Gatling Laser Zionite Alpha Cannon > --- INVENTORY -------- Light Quantum Reactor Light Quantum Reactor High-density Centrium Heavy Treads High-density Centrium Heavy Treads Advanced Power Amplifier Advanced Cryofiber Web Advanced Heat Sink Advanced Gravity Neutralizer IFF Parser Energy Filter Advanced Particle Charger Advanced Transmission Jammer Cloaking Device Zionite Weapon Casing Graphene Brace Advanced Force Field Gatling Laser Gatling Laser Gatling Laser Gatling Laser Phase Gun Zionite Phaser-M Fusion Bomb Launcher [Rating: 187] Favorites ----------- Power Quantum Reactor Engine Improved Deuterium Engine Power Core Fission Core Reactor Quantum Reactor Propulsion Centrium Heavy Treads Treads Centrium Heavy Treads Leg Carbon-fiber Leg Wheel Armored Huge Wheel Utility Advanced Heat Sink Device Advanced Heat Sink Storage Huge Storage Unit Processor Advanced Targeting Computer Hackware Improved System Shield Protection Zionite Weapon Casing Weapon Gatling Laser Energy Gun Gatling Laser Energy Cannon Advanced Beam Cannon Ballistic Gun Assault Rifle Ballistic Cannon Improved Light Cannon Launcher Fusion Bomb Launcher Special Weapon Improved Plasma Cutter Piercing Weapon CR-A16's Pointy Stick Build | -11 -10 -10 -8 -7 -7 -7 -7 -7 -7 -6 -6 -5 -5 -5 -5 -5 -4 -3 -3 -2 -2 -1 ------- Run | Yrd Mat Sub Mat Fac Was Fac Low Low Zio Pro Fac Fac Ext Cet Arc Hub Fac Res Arm Res DSF Acc Slots Evolved 19 | . 1 . 4 2 . . . . . . 2 2 . . . . 2 2 . 2 . 2 Power 1 | . . . 1 . . . . . . . . . . . . . . . . . . . Propulsion 4 | . . . . 1 . . . . . . . 1 . . . . . . . 2 . . Utility 8 | . . . 2 1 . . . . . . 2 1 . . . . 2 . . . . . Weapon 6 | . 1 . 1 . . . . . . . . . . . . . . 2 . . . 2 Parts Attached 285 | 7 10 7 23 2 2 9 2 2 2 6 32 23 3 7 . 15 29 38 26 3 9 28 Power 31 | 1 1 1 4 . . 2 . . . 2 4 2 1 2 . 1 2 4 2 . 2 . Engine 9 | 1 . 1 2 . . 2 . . . 2 1 . . . . . . . . . . . Core 9 | . 1 . 2 . . . . . . . 2 2 1 . . . 1 . . . . . Reactor 13 | . . . . . . . . . . . 1 . . 2 . 1 1 4 2 . 2 . Propulsion 38 | 2 2 4 4 . . . 2 . . 2 5 4 2 2 . . 2 . 1 3 3 . Treads 31 | 2 2 1 3 . . . 2 . . 2 4 3 1 2 . . 2 . 1 3 3 . Leg 1 | . . . . . . . . . . . . . 1 . . . . . . . . . Wheel 6 | . . 3 1 . . . . . . . 1 1 . . . . . . . . . . Hover . | . . . . . . . . . . . . . . . . . . . . . . . Flight . | . . . . . . . . . . . . . . . . . . . . . . . Utility 136 | 2 3 2 8 1 . 1 . 2 1 1 16 10 . 2 . 13 19 24 9 . 3 19 Device 101 | 1 2 2 5 . . 1 . 2 1 1 13 8 . 1 . 9 12 21 9 . 2 11 Storage 8 | . . . . . . . . . . . . . . . . . 5 1 . . 1 1 Processor 17 | 1 1 . 1 1 . . . . . . 1 1 . . . 3 2 1 . . . 5 Hackware 1 | . . . . . . . . . . . . . . . . 1 . . . . . . Protection 9 | . . . 2 . . . . . . . 2 1 . 1 . . . 1 . . . 2 Artifact . | . . . . . . . . . . . . . . . . . . . . . . . Weapon 80 | 2 4 . 7 1 2 6 . . 1 1 7 7 . 1 . 1 6 10 14 . 1 9 Energy Gun 59 | . 3 . 3 . . 5 . . 1 . 7 7 . . . 1 4 9 10 . 1 8 Energy Cannon 9 | . . . 4 1 . . . . . . . . . . . . 1 . 2 . . 1 Ballistic Gun 3 | 2 . . . . . 1 . . . . . . . . . . . . . . . . Ballistic Cannon 2 | . 1 . . . . . . . . . . . . . . . . 1 . . . . Launcher 5 | . . . . . 2 . . . . . . . . . . . 1 . 2 . . . Special Weapon 1 | . . . . . . . . . . . . . . 1 . . . . . . . . Impact Weapon . | . . . . . . . . . . . . . . . . . . . . . . . Slashing Weapon . | . . . . . . . . . . . . . . . . . . . . . . . Piercing Weapon 1 | . . . . . . . . . . 1 . . . . . . . . . . . . Special Melee Weapon . | . . . . . . . . . . . . . . . . . . . . . . . Unidentified Prototypes 57 | . 1 . 4 . 1 4 . . 1 . 6 2 . 2 . 4 9 7 5 1 1 9 Parts Lost 36 | . . 2 . . . . . 1 . 2 3 2 . . . . 9 10 4 . 1 2 Power 3 | . . . . . . . . . . . . . . . . . 1 1 . . 1 . Propulsion 3 | . . . . . . . . . . 1 1 . . . . . . 1 . . . . Utility 20 | . . 2 . . . . . 1 . . 1 2 . . . . 4 6 2 . . 2 Weapon 10 | . . . . . . . . . . 1 1 . . . . . 4 2 2 . . . Highest Loss Streak 6 | . . 2 . . . . . 1 . 2 1 1 . . . . 2 6 1 . 1 2 To Critical Strikes . | . . . . . . . . . . . . . . . . . . . . . . . Average Backups 10 | 1 3 3 4 2 4 4 3 3 4 3 3 4 4 4 5 4 11 20 21 23 21 21 Power . | . . . . . . . 1 1 1 . . . . . . . . 1 2 3 1 1 Propulsion . | . . . . . . . . . . . . . . . . . . 2 1 . 1 2 Utility 6 | . 1 1 2 2 . . 1 1 1 2 2 2 1 1 2 2 6 15 11 12 11 10 Weapon 2 | . . 1 . . 4 4 1 1 1 . 1 1 2 2 2 1 3 1 6 8 8 6 Tool/Special . | . . . . . . . . . . . . . . . . . . . . . . . Unused Backups 38 | . 1 1 3 . . . 1 . . 2 2 4 . 1 . 1 4 5 4 . . 9 Power 3 | . . . . . . . . . . . . 1 . . . . . . . . . 2 Propulsion 3 | . . . 1 . . . . . . . . . . 1 . . . . 1 . . . Utility 23 | . . 1 . . . . . . . . 2 3 . . . . 4 5 3 . . 5 Weapon 8 | . 1 . 1 . . . 1 . . 2 . . . . . 1 . . . . . 2 Tool/Special 1 | . . . 1 . . . . . . . . . . . . . . . . . . . Average Slot Usage (%) 92 | . 98 93 97 99 100 99 100 99 100 96 96 87 96 88 88 87 88 89 89 87 87 87 Engine 1 | . 3 2 3 . . . 7 7 7 7 2 1 . . . . . . . . . . Core 4 | . 8 6 12 14 14 13 7 7 7 7 9 9 11 1 . . . . . . . . Reactor 4 | . . . . . . . . . . . . . . 9 11 11 9 8 9 8 8 7 Treads 12 | . 25 9 11 21 21 20 21 21 21 18 16 . 18 11 11 11 10 9 8 12 12 11 Wheel 1 | . . 11 4 . . . . . . . . 10 . . . . . . . . . . Device 30 | . 15 24 23 21 21 21 21 20 21 21 28 36 33 33 33 35 39 38 40 37 35 28 Storage 2 | . . . . . . . . . . . . . . . . . 4 4 4 4 6 6 Processor 6 | . 9 . 6 13 14 14 14 14 14 14 12 6 11 11 11 7 5 1 . . . . Energy Gun 24 | . 24 37 13 . . 18 28 28 28 21 23 22 22 21 22 21 19 26 26 25 25 28 Energy Cannon 1 | . . . 19 28 15 9 . . . . . . . . . . . . . . . . Peak Build Rating 187 | 7 19 20 37 41 44 50 50 51 60 57 82 87 91 116 113 124 149 169 167 167 172 187 Average Rating 107 | 4 15 18 33 40 43 46 49 48 52 55 69 82 87 109 113 115 133 160 149 165 166 178 On Entrance 77 | . 7 18 17 35 41 42 49 49 51 54 55 68 87 90 113 113 116 144 163 147 167 166 Avg Prop Armor Cover (%) 7 | . . 6 8 . . . . . . . 6 6 . . . . . . . . . . Naked Turns . | . . . . . . . . . . . . . . . . . . . . . . . Heaviest Build 178 | 8 16 17 41 43 44 43 40 41 44 47 55 56 57 73 71 82 160 176 177 166 166 178 Greatest Support 260 | 40 46 46 43 63 63 63 69 69 69 76 83 89 112 160 160 160 160 172 176 260 260 225 Greatest Overweight (x) 3 | . . 3 2 . . . . . . . 1 1 . . . . . 1 1 . . 1 Average Overweight (x) . | . . . . . . . . . . . . . . . . . . . . . . . Largest Inventory Capacity 35 | 5 5 5 5 5 5 5 5 5 5 5 5 5 5 5 5 5 35 25 25 25 25 25 Average Capacity 13 | 5 5 5 5 5 5 5 5 5 5 5 5 5 5 5 5 5 24 25 25 25 25 25 Most Carried 25 | 3 5 5 5 3 5 5 5 4 5 5 5 5 5 5 5 5 25 25 25 25 24 25 Average Carried 11 | 1 3 3 4 2 4 4 3 3 4 3 3 4 4 4 5 4 12 22 23 23 22 23 Final Capacity 25 | 5 5 5 5 5 5 5 5 5 5 5 5 5 5 5 5 5 25 25 25 25 25 25 Final Carried 25 | 1 4 4 4 3 3 5 3 3 5 2 5 4 4 5 5 4 23 21 25 23 23 22 Class Distribution -------------------- 30% | Machinist-Executioner 28% | Hacker-Gunner 11% | Scavenger-Tank 8% | Scientist-Gunner 6% | Scavenger-Executioner 4% | Hacker-Tank 4% | Scavenger-Gunner 3% | Messiah-Gunner Dominant Class ---------------- Hacker-Skirmisher | -10/Materials Hacker-Tank | -10/Subcaves Hacker-Gunner | -8/Materials Hacker-Gunner | -7/Factory Hacker-Gunner | -7/Waste Scientist-Gunner | -7/Factory Hacker-Gunner | -7/Lower Caves Hacker-Gunner | -7/Lower Caves Hacker-Gunner | -7/Zion Hacker-Gunner | -6/Proximity Caves Scientist-Gunner | -6/Factory Hacker-Gunner | -5/Factory Hacker-Gunner | -5/Extension Scavenger-Tank | -5/Cetus Scavenger-Tank | -5/Archives Scavenger-Tank | -5/Hub_04(d) Scavenger-Tank | -4/Factory Machinist-Executioner | -3/Research Machinist-Executioner | -3/Armory Machinist-Executioner | -2/Research Machinist-Executioner | -2/DSF Machinist-Executioner | -1/Access Resources | -11 -10 -10 -8 -7 -7 -7 -7 -7 -7 -6 -6 -5 -5 -5 -5 -5 -4 -3 -3 -2 -2 -1 ----------- Run | Yrd Mat Sub Mat Fac Was Fac Low Low Zio Pro Fac Fac Ext Cet Arc Hub Fac Res Arm Res DSF Acc Matter Collected 7028 | 178 374 88 369 . 355 208 120 17 66 97 435 330 55 143 . 419 406 609 689 30 61 1979 Remotely . | . . . . . . . . . . . . . . . . . . . . . . . Salvage Created 41846 | . 626 365 1106 . 450 605 389 291 . 1065 3179 5128 245 125 229 2246 5011 5640 5437 . 623 9086 Parts 1082 | . 32 21 45 . 3 19 12 10 . 36 87 136 14 1 4 56 138 166 136 . 19 147 Haulers Intercepted 10 | . . . . . . 1 . . . . . 2 . . . . 1 1 . . . 5 Recyclers Shooed 4 | . . . . . . . . . . . 1 . . . . . 2 . . . . 1 Parts Field Recycled . | . . . . . . . . . . . . . . . . . . . . . . . Retrieved Matter . | . . . . . . . . . . . . . . . . . . . . . . . Parts Self-Destructed . | . . . . . . . . . . . . . . . . . . . . . . . Prevented . | . . . . . . . . . . . . . . . . . . . . . . . Parts Restored . | . . . . . . . . . . . . . . . . . . . . . . . Kills | -11 -10 -10 -8 -7 -7 -7 -7 -7 -7 -6 -6 -5 -5 -5 -5 -5 -4 -3 -3 -2 -2 -1 ------- Run | Yrd Mat Sub Mat Fac Was Fac Low Low Zio Pro Fac Fac Ext Cet Arc Hub Fac Res Arm Res DSF Acc Combat Hostiles Destroyed 681 | . 11 8 21 . 2 10 7 7 . 22 56 99 5 2 3 39 76 94 86 . 9 124 Guns 517 | . 8 8 11 . . 4 7 5 . 17 50 85 4 1 1 27 58 74 63 . 6 88 Cannons 16 | . 2 . 10 . . 4 . . . . . . . . . . . . . . . . AOE 3 | . . . . . 2 . . . . . . 1 . . . . . . . . . . Classes Destroyed 25 | . 5 1 3 . 2 2 . . . 2 . 5 . . . . 2 1 2 . . . Worker 30 | . . . 2 . . . . . . . . 5 . . . 3 6 9 . . . 5 Builder 14 | . 1 . . . . 1 . . . . . 1 2 . . . 2 3 . . . 4 Tunneler 4 | . . . . . . . . . . . . . . . . . 1 . . . . 3 Hauler 10 | . . . . . . 1 . . . . . 2 . . . . 1 1 . . . 5 Recycler 18 | . 3 . . . . . . . . . 3 . . . . . 8 3 . . . 1 Mechanic 1 | . . . . . . . . . . . . . . . . . . 1 . . . . Operator 11 | . . . . . . . . . . . . 1 . . 1 2 2 . 3 . . 2 Watcher 51 | . 3 . 3 . . . . . . . 6 5 1 . . 4 5 9 4 . . 11 Swarmer 100 | . 4 . 3 . . . 1 3 . 7 12 15 2 . . . 15 12 9 . 3 14 Grunt 225 | . 7 . 8 . . 4 3 1 . 11 24 45 1 . . 11 20 32 17 . . 41 Brawler 12 | . . . . . . . . . . 2 . 1 . . . . 1 1 3 . . 4 Duelist 18 | . . . . . . . 2 1 . . 2 1 1 . . . 1 2 6 . . 2 Protector 5 | . . . . . . . . . . 1 . 1 . . . 1 1 . 1 . . . Sentry 81 | . . . 6 . . 2 1 . . 1 9 10 . . 3 8 6 12 9 . 1 13 Demolisher 1 | . . . . . . . . . . . . . . . . . 1 . . . . . Specialist 12 | . . . . . . . . . . . . 2 . . . . 4 2 . . 2 2 Hunter 66 | . . . 4 . . 2 . 1 . . 4 12 . . . 1 11 6 8 . 2 15 Programmer 112 | . . . . . . 2 . 1 . . 5 9 . . . 8 13 24 21 . . 29 Heavy 8 | . . . . . . . . . . . . 1 . . . . 3 1 . . 1 2 Behemoth 9 | . . . . . . . . . . . . 1 1 . . 1 . 2 1 . . 3 Compactor 2 | . . . . . 2 . . . . . . . . . . . . . . . . . Armor Guard 5 | . . . . . . . . . . . . . . . . . . . 5 . . . Cetus Guard 2 | . . . . . . . . . . . . . . 2 . . . . . . . . Quarantine Guard 1 | . . . . . . . . . . . . . . . . . . . 1 . . . S7 Guard 1 | . . . . . . . . . . . . . . . . . . . 1 . . . Lightning 9 | . . . . . . . . . . . . . . . . 9 . . . . . . CL-0N3 Special 1 | . . . . . . . . . . . . . . . . . . . 1 . . . Alpha 7 1 | . . . . . . . . . . . . . . . . . . . 1 . . . Subdweller 8 | . . 8 . . . . . . . . . . . . . . . . . . . . Z-Light 2 | . . . . . . . . . . . . . . . . . . . 2 . . . Wasp 1 | . . . . . 1 . . . . . . . . . . . . . . . . . Thug 1 | . . . . . 1 . . . . . . . . . . . . . . . . . Butcher 1 | . . . . . 1 . . . . . . . . . . . . . . . . . Fireman 1 | . . . . . . . . . . . . 1 . . . . . . . . . . Best Kill Streak 19 | . 6 2 5 . 1 5 5 3 . 7 6 10 3 2 4 7 13 19 7 . 4 8 Combat Bots Only 9 | . 3 2 4 . 1 3 5 3 . 7 6 9 2 2 2 6 7 7 7 . 4 8 Max Kills in Single Turn 4 | . 1 1 2 . 2 2 2 2 . 2 2 3 2 1 1 2 3 4 2 . 2 3 Gunslinging 2 | . . . 1 . . . 1 1 . 1 1 2 1 . . . 2 2 1 . 1 2 Exploded 1 | . . . . . 1 . . . . . . 1 . . . . . . . . . . Melee . | . . . . . . . . . . . . . . . . . . . . . . . Uniques/NPCs Destroyed 1 | . . . . . . . . . . . . . . . . . . . 1 . . . CL-0N3 (-3/Armory) Combat | -11 -10 -10 -8 -7 -7 -7 -7 -7 -7 -6 -6 -5 -5 -5 -5 -5 -4 -3 -3 -2 -2 -1 -------- Run | Yrd Mat Sub Mat Fac Was Fac Low Low Zio Pro Fac Fac Ext Cet Arc Hub Fac Res Arm Res DSF Acc Hostile Shots Fired 2249 | . 37 31 62 . . 49 21 13 . 113 202 248 3 11 10 113 347 383 229 . 33 344 Missed 847 | . 12 6 17 . . 20 6 3 . 37 84 95 . 3 6 33 158 141 88 . 15 123 Hits 1402 | . 25 25 45 . . 29 15 10 . 76 118 153 3 8 4 80 189 242 141 . 18 221 Melee 10 | . . . . . . . 2 . . 1 2 . . . . . . . 1 . . 4 Projectile 1392 | . 25 25 45 . . 29 13 10 . 75 116 153 3 8 4 80 189 242 140 . 18 217 AOE 1 | . . . . . . . . . . . . . . . . . . . 1 . . . Critical Strikes 57 | . . 1 . . . . 2 . . . 2 5 . 2 . 10 2 14 8 . . 11 Actively Blocked 8 | . . . . . . . . . . . 1 . . . . . . 3 4 . . . Part Disruptions 2 | . . . . . . . . . . . . 1 . . . . . 1 . . . . Damage Taken 12014 | . 135 311 319 . 91 199 138 68 . 905 686 899 38 70 41 540 1606 2497 1902 . 158 1411 Core 1056 | . 37 60 55 . 9 20 8 7 . 121 40 56 13 . 9 66 133 141 204 . . 77 Absorbed by Shields 5654 | . . 36 132 . 37 83 55 28 . . 346 927 40 71 43 499 555 919 322 . 166 1395 Redirected to Shielding 112 | . . . 3 . . . . . . . 109 . . . . . . . . . . . Ignored by Resistances 12297 | . 93 185 274 . 78 172 113 60 . 545 642 1060 47 85 49 1375 1744 2024 1308 . 185 2258 Regen/Repaired (Parts) 2128 | . . . 35 . 64 49 . . . . 9 80 . . . . 73 646 1075 . . 97 Core Remaining (%) 86 | 100 . 61 90 . . . . . . 76 95 . . . . 85 88 . 73 . 100 95 Volleys Fired 1036 | . 29 20 39 . 7 19 9 10 . 45 94 133 7 7 7 74 114 123 114 . 9 176 Largest 8 | . 3 3 4 . 2 4 4 4 . 4 4 4 4 4 4 4 4 6 6 . 6 8 Hottest 640 | . 168 168 271 . 83 250 286 286 . 306 315 320 320 320 320 340 400 600 564 . 480 640 Shots Fired 4597 | . 89 60 156 . 14 76 36 40 . 134 339 526 28 29 28 292 420 620 605 . 54 1051 Gun 4421 | . 72 60 93 . . 42 36 40 . 134 339 526 28 29 28 292 420 620 600 . 54 1008 Cannon 119 | . 17 . 63 . . 34 . . . . . . . . . . . . 3 . . 2 Launcher 57 | . . . . . 14 . . . . . . . . . . . . . 2 . . 41 Special . | . . . . . . . . . . . . . . . . . . . . . . . Kinetic 51 | . 51 . . . . . . . . . . . . . . . . . . . . . Thermal 4483 | . 38 60 156 . . 76 36 40 . 134 339 526 28 29 28 292 420 620 600 . 54 1007 Explosive 57 | . . . . . 14 . . . . . . . . . . . . . 2 . . 41 Electromagnetic . | . . . . . . . . . . . . . . . . . . . . . . . Phasic 6 | . . . . . . . . . . . . . . . . . . . 3 . . 3 Robot Hit Streak 146 | . 14 32 26 . 21 37 40 14 . 56 60 80 54 20 24 82 84 65 65 . 57 146 Robot Miss Streak 4 | . 1 1 2 . 1 1 1 4 . 2 3 3 1 3 2 2 2 4 4 . 2 3 Penetration Max . | . . . . . . . . . . . . . . . . . . . . . . . Secondary Targets 152 | . 1 2 1 . . . 3 1 . 9 8 24 1 . . 4 16 17 30 . 2 33 Max Gunslinging Chain 2 | . 1 1 1 . . . 1 1 . 1 2 2 1 . . 1 2 2 2 . 2 2 Shots Hit Robots 3501 | . 62 52 108 . 13 65 27 26 . 112 260 437 18 25 25 251 366 451 450 . 33 720 Core Hits 3067 | . 19 16 46 . 25 22 14 9 . 40 217 434 16 24 27 226 366 422 423 . 43 678 Critical Kills 1 | . . . . . . 1 . . . . . . . . . . . . . . . . Critical Parts Destroyed 1 | . 1 . . . . . . . . . . . . . . . . . . . . . Critical Strikes 48 | . 4 5 6 . . 4 2 6 . 11 6 1 . . . . . . 2 . . 1 Burn 45 | . 3 5 6 . . 3 2 6 . 11 6 1 . . . . . . 2 . . . Meltdown 1 | . . . . . . 1 . . . . . . . . . . . . . . . . Destroy 1 | . 1 . . . . . . . . . . . . . . . . . . . . . Intensify 1 | . . . . . . . . . . . . . . . . . . . . . . 1 Melee Attacks . | . . . . . . . . . . . . . . . . . . . . . . . Impact . | . . . . . . . . . . . . . . . . . . . . . . . Slashing . | . . . . . . . . . . . . . . . . . . . . . . . Piercing . | . . . . . . . . . . . . . . . . . . . . . . . Sneak Attacks . | . . . . . . . . . . . . . . . . . . . . . . . Combat Hostiles . | . . . . . . . . . . . . . . . . . . . . . . . Follow-up Attacks . | . . . . . . . . . . . . . . . . . . . . . . . Damage Inflicted 114695 | . 970 890 2080 . 2925 1505 559 560 . 2226 7261 14140 536 739 697 8334 12731 18053 14865 . 1120 24504 Guns 108710 | . 762 890 1220 . . 810 559 560 . 2226 7251 13805 536 739 697 8298 12674 17689 14865 . 1120 24009 Cannons 1741 | . 207 . 845 . . 689 . . . . . . . . . . . . . . . . Explosions 3848 | . . . . . 2925 . . . . . . 300 . . . . . 272 . . . 351 Melee . | . . . . . . . . . . . . . . . . . . . . . . . Ramming 396 | . 1 . 15 . . 6 . . . . 10 35 . . . 36 57 92 . . . 144 Kinetic 558 | . 558 . . . . . . . . . . . . . . . . . . . . . Thermal 109960 | . 411 890 2065 . . 1499 559 560 . 2226 7251 13805 536 739 697 8298 12674 17689 14865 . 1120 24076 Explosive 3740 | . . . . . 2925 . . . . . . 300 . . . . . 272 . . . 243 Electromagnetic . | . . . . . . . . . . . . . . . . . . . . . . . Impact . | . . . . . . . . . . . . . . . . . . . . . . . Slashing . | . . . . . . . . . . . . . . . . . . . . . . . Piercing . | . . . . . . . . . . . . . . . . . . . . . . . Phasic 41 | . . . . . . . . . . . . . . . . . . . . . . 41 Highest Corruption 19 | . 1 1 6 . . 1 1 1 1 1 1 1 2 2 2 9 2 5 4 . . 19 Average Corruption 4 | . 1 1 3 . . 1 1 1 1 1 1 1 1 2 2 4 1 1 2 . . 15 Corruption Purged 19 | . . . . . . . . . . . . . . . . 5 2 5 7 . . . Corruption Blocked . | . . . . . . . . . . . . . . . . . . . . . . . Effects 537 | . 6 11 27 . . 6 6 5 13 11 6 6 14 11 . 49 10 44 41 . . 271 Message Errors 102 | . . 2 5 . . 1 2 1 4 2 1 1 3 3 . 4 3 11 8 . . 51 Matter Fused 127 | . 2 4 8 . . 2 2 1 2 2 2 2 2 3 . 7 4 8 10 . . 66 Heat Flow Errors 59 | . 1 2 4 . . 1 . 1 3 1 1 . 1 2 . 6 . 5 8 . . 23 Energy Discharges 64 | . . . 2 . . . . 2 1 3 . . 4 . . 11 1 3 6 . . 31 Parts Rejected 3 | . . . . . . . . . . . . . . . . 1 . . . . . 2 Parts Fused 12 | . . 1 . . . . . . 1 1 . . 1 . . 1 . . . . . 7 Data Loss (minor) 64 | . . 2 7 . . 1 2 . 2 1 . 3 2 1 . 5 . 7 3 . . 28 Data Loss (major) 29 | . 1 . 1 . . . . . . 1 1 . . 1 . 4 2 4 2 . . 12 Misfires 17 | . 2 . . . . 1 . . . . 1 . . 1 . 2 . 3 2 . . 5 Alerts 8 | . . . . . . . . . . . . . 1 . . 2 . 1 1 . . 3 Misdirections 2 | . . . . . . . . . . . . . . . . . . . . . . 2 Weapon Failures 50 | . . . . . . . . . . . . . . . . 6 . 2 1 . . 41 Overload Shots . | . . . . . . . . . . . . . . . . . . . . . . . Overflow Damage 121 | . . . 17 . 40 16 . . . . . . . . . . 2 13 . . . 33 Projectiles 33 | . . . 17 . . 16 . . . . . . . . . . . . . . . . Explosions 53 | . . . . . 40 . . . . . . . . . . . . 13 . . . . Melee 35 | . . . . . . . . . . . . . . . . . 2 . . . . 33 Knockbacks 9 | . 3 . 1 . . . . . . . . 1 . . . 2 . . . . . 2 Impact 6 | . . . 1 . . . . . . . . 1 . . . 2 . . . . . 2 Kinetic 3 | . 3 . . . . . . . . . . . . . . . . . . . . . Secondary . | . . . . . . . . . . . . . . . . . . . . . . . Self-Inflicted Damage 325 | . . . . . 108 . . . . . . 17 . . . . . 53 . . . 147 Shots 15 | . . . . . 8 . . . . . . . . . . . . 1 . . . 6 Rammed 29 | . 1 . 3 . . 1 . . . . 2 3 . . . 3 3 7 . . . 6 Targets Rammed 31 | . 1 . 3 . . 1 . . . . 2 3 . . . 4 3 7 . . . 7 Kicked . | . . . . . . . . . . . . . . . . . . . . . . . Crushed 2 | . . . . . . . . . . . . . . . . 1 . . . . . 1 Highest Temperature 935 | . 392 342 394 . . 68 242 217 115 368 144 14 174 167 . 401 353 200 96 . . 935 Average Temperature 115 | . 88 82 127 . . 17 117 64 66 132 55 4 118 80 . 91 111 72 70 . . 198 Received Heat Transfer 2799 | . 48 46 156 . . 70 49 12 . 474 179 247 12 . 4 101 254 614 366 . 4 163 Effects 29 | . 4 3 . . . . . . . 3 . . . . . 1 2 . . . . 16 Shutdowns 3 | . . . . . . . . . . 1 . . . . . . 2 . . . . . Energy Bleed 4 | . . . . . . . . . . 2 . . . . . . . . . . . 2 Interference 12 | . 4 3 . . . . . . . . . . . . . 1 . . . . . 4 Matter Decay 3 | . . . . . . . . . . . . . . . . . . . . . . 3 Short Circuit 1 | . . . . . . . . . . . . . . . . . . . . . . 1 Damage (minor) 3 | . . . . . . . . . . . . . . . . . . . . . . 3 Damage (major) 3 | . . . . . . . . . . . . . . . . . . . . . . 3 Siege Activations . | . . . . . . . . . . . . . . . . . . . . . . . Martial Activations . | . . . . . . . . . . . . . . . . . . . . . . . Shielding Activations . | . . . . . . . . . . . . . . . . . . . . . . . Robots Disrupted . | . . . . . . . . . . . . . . . . . . . . . . . Combat Hostiles . | . . . . . . . . . . . . . . . . . . . . . . . Robots Corrupted 2 | . . . . . . . . . . . . . . . . . 1 . . . . 1 Combat Hostiles . | . . . . . . . . . . . . . . . . . . . . . . . Parts Fried . | . . . . . . . . . . . . . . . . . . . . . . . Impact Corruptions 6 | . . . . . . . . . . . . . . . . . 2 . . . . 4 Robots Melted 158 | . 1 . . . . 2 . 2 . 5 6 13 1 1 2 12 18 24 24 . 3 44 Combat Hostiles 145 | . 1 . . . . 2 . 2 . 5 6 13 1 1 2 12 18 20 23 . 3 36 Parts Melted 834 | . 1 7 12 . . 12 3 10 . 12 41 107 6 2 6 54 84 101 125 . 7 244 Heat Transferred 211636 | . 1110 2294 4514 . . 2744 1147 1406 . 4647 15650 28471 1175 1675 1600 15209 23342 29524 27698 . 2325 47105 Parts Sabotaged 4 | . . . . . . . . . . . . . . . . . . . . . . 4 Parts Stolen . | . . . . . . . . . . . . . . . . . . . . . . . Parts Stripped . | . . . . . . . . . . . . . . . . . . . . . . . Power Chain Reactions . | . . . . . . . . . . . . . . . . . . . . . . . Alert | -11 -10 -10 -8 -7 -7 -7 -7 -7 -7 -6 -6 -5 -5 -5 -5 -5 -4 -3 -3 -2 -2 -1 ------- Run | Yrd Mat Sub Mat Fac Was Fac Low Low Zio Pro Fac Fac Ext Cet Arc Hub Fac Res Arm Res DSF Acc Maximum Alert Level 4 | . . . . . . . . . . . 1 2 1 . . 1 1 1 1 . 1 4 Low Security (%) 71 | 100 100 . 100 100 100 100 . . . . 97 27 91 100 100 98 58 94 56 100 55 27 Level 1 14 | . . . . . . . . . . . 2 24 8 . . 1 41 5 43 . 44 17 Level 2 6 | . . . . . . . . . . . . 47 . . . . . . . . . 11 Level 3 6 | . . . . . . . . . . . . . . . . . . . . . . 37 Level 4 . | . . . . . . . . . . . . . . . . . . . . . . 5 Level 5 . | . . . . . . . . . . . . . . . . . . . . . . . High Security . | . . . . . . . . . . . . . . . . . . . . . . . Max Security . | . . . . . . . . . . . . . . . . . . . . . . . Sterilizations 2 | . . . . . . . . . . . . . . . . . . . . . 1 1 Peak Influence 1160 | . 84 . 100 . 39 109 . . . . 262 655 233 53 71 225 395 268 352 . 215 1160 Initial 230 | . . . . . . . . . . . . 3 230 . . . . 99 76 . . 97 Average 176 | . 16 . 15 . 7 9 . . . . 36 349 50 6 18 31 149 45 167 . 144 562 Influence Increases 22835 | . 409 . 693 . 117 610 140 195 . 622 1851 3025 436 226 101 1058 2202 2623 2808 . 215 5504 Destroy 0b10 Robot/C 14600 | . 220 . 420 . . 280 140 140 . 540 1200 2100 260 160 80 760 1560 1920 1840 . 180 2800 Destroy 0b10 Robot/NC 785 | . 35 . 25 . . 15 . . . 5 65 75 25 10 5 50 130 130 45 . 5 165 Destroy Leader 3218 | . 56 . 146 . . 102 . 40 . 60 316 434 32 . . 198 362 470 370 . 30 602 Allied During Kill 420 | . . . . . . 33 . . . 17 7 26 55 29 . . 10 18 121 . . 104 Successful Hack 599 | . 33 . 32 . . 59 . . . . 40 27 23 7 . . 74 59 152 . . 93 Select Force Hacks 620 | . 60 . 30 . . 60 . . . . 180 230 . . . . 60 . . . . . Disable Machine 156 | . 4 . . . . 4 . . . . 4 32 . 4 . 16 . 8 60 . . 24 Anti-Garrison Action 150 | . . . . . . . . . . . . . . . . . . . . . . 150 Destroy Structure 1927 | . 1 . 10 . 117 27 . . . . 24 56 26 16 16 4 6 18 130 . . 1476 Lose Combat Pursuer 360 | . . . 30 . . 30 . 15 . . 15 45 15 . . 30 . . 90 . . 90 Influence Decreases 22185 | . 409 . 693 . 117 610 140 185 10 622 1842 2394 1076 226 101 1058 1946 2682 3005 . . 5069 Entered New Map 822 | . . . . . . . . . 10 . . 6 410 . . . . 157 121 . . 118 Time Decay 19791 | . 409 . 693 . 117 440 140 175 . 542 1792 2238 626 138 101 1034 1786 2345 2514 . . 4701 Lost Part 310 | . . . . . . . . 10 . 20 10 20 . . . . 90 100 40 . . 20 Lost Ally 1262 | . . . . . . 170 . . . 60 40 130 40 88 . 24 70 80 330 . . 230 Squads Dispatched 168 | . 2 . 5 . . 10 . . . 1 19 28 1 . . 7 25 20 13 . 2 35 Investigation 59 | . 2 . 2 . . 5 . . . . 10 13 1 . . 2 9 5 4 . . 6 Extermination 48 | . . . . . . 3 . . . . 6 3 . . . 5 4 11 8 . . 8 Reinforcement 27 | . . . 3 . . 2 . . . . 1 6 . . . . 4 1 1 . 2 7 Assault 8 | . . . . . . . . . . 1 . 2 . . . . . . . . . 5 Garrison 26 | . . . . . . . . . . . 2 4 . . . . 8 3 . . . 9 Intercept . | . . . . . . . . . . . . . . . . . . . . . . . Searches Triggered . | . . . . . . . . . . . . . . . . . . . . . . . Unchained Authorized 1 | . . . . . . . . . . . . . . . . . . . 1 . . . Construction Impeded 2 | . . . . . . . . . . . . . . . . . . . . . . 2 Haulers Reinforced 6 | . . . . . . 1 . . . . . 2 . . . . . . . . . 3 Active Scanning Responses . | . . . . . . . . . . . . . . . . . . . . . . . Cargo Convoy Interrupts 2 | . . . . . . . . . . . . 1 . . . . 1 . . . . . Stealth | -11 -10 -10 -8 -7 -7 -7 -7 -7 -7 -6 -6 -5 -5 -5 -5 -5 -4 -3 -3 -2 -2 -1 --------- Run | Yrd Mat Sub Mat Fac Was Fac Low Low Zio Pro Fac Fac Ext Cet Arc Hub Fac Res Arm Res DSF Acc Distress Signals 20 | . . . . . . . . . . . 2 6 1 2 . 2 3 2 . . . 2 Communications Jammed 46 | . . . . . . . . . . . . . . . . . . 46 . . . . Distress Signals 42 | . . . . . . . . . . . . . . . . . . 42 . . . . Times Spotted 849 | . 13 9 27 . 4 20 7 7 . 29 73 121 12 10 6 58 88 102 106 . 9 148 Peak Tracking Total 9 | . 2 3 4 . 2 8 5 3 . 7 5 7 2 5 1 5 9 5 8 . 3 8 Tactical Retreats 20 | . . . 2 . . 1 . 1 . . 1 3 1 . . 2 . . 5 . . 4 Traps | -11 -10 -10 -8 -7 -7 -7 -7 -7 -7 -6 -6 -5 -5 -5 -5 -5 -4 -3 -3 -2 -2 -1 ------- Run | Yrd Mat Sub Mat Fac Was Fac Low Low Zio Pro Fac Fac Ext Cet Arc Hub Fac Res Arm Res DSF Acc Traps Triggered 31 | . 2 1 6 1 . 2 . . . . 5 2 4 . . . 1 2 3 . . 2 Indirectly . | . . . . . . . . . . . . . . . . . . . . . . . Trap Hack Attempts . | . . . . . . . . . . . . . . . . . . . . . . . Triggered . | . . . . . . . . . . . . . . . . . . . . . . . Disarmed . | . . . . . . . . . . . . . . . . . . . . . . . Reprogrammed . | . . . . . . . . . . . . . . . . . . . . . . . Reused . | . . . . . . . . . . . . . . . . . . . . . . . Traps Extracted . | . . . . . . . . . . . . . . . . . . . . . . . Installed . | . . . . . . . . . . . . . . . . . . . . . . . Triggered . | . . . . . . . . . . . . . . . . . . . . . . . Machines | -11 -10 -10 -8 -7 -7 -7 -7 -7 -7 -6 -6 -5 -5 -5 -5 -5 -4 -3 -3 -2 -2 -1 ---------- Run | Yrd Mat Sub Mat Fac Was Fac Low Low Zio Pro Fac Fac Ext Cet Arc Hub Fac Res Arm Res DSF Acc Machines Disabled 51 | . 1 . . . . 1 . . . . 1 8 . 1 . 4 . 2 15 . . 18 Max in Single Turn 4 | . 1 . . . . . . . . . 1 4 . 1 . 1 . 1 1 . . 2 Garrison Access 17 | . . . 1 . . 1 . . . . 3 3 . . . 1 3 1 . . . 4 Network Hub 4 | . . . . . . . . . . . . . . . . 4 . . . . . . Energy Cycler 5 | . . . . . . . . . . . . . 2 . . . . . 1 . . 2 Machines Repaired . | . . . . . . . . . . . . . . . . . . . . . . . Machines Dismantled 5 | . . . . . . . . . . . . . . 1 . 4 . . . . . . Machines Sabotaged . | . . . . . . . . . . . . . . . . . . . . . . . Overloaded Fab Kills . | . . . . . . . . . . . . . . . . . . . . . . . Hacking | -11 -10 -10 -8 -7 -7 -7 -7 -7 -7 -6 -6 -5 -5 -5 -5 -5 -4 -3 -3 -2 -2 -1 --------- Run | Yrd Mat Sub Mat Fac Was Fac Low Low Zio Pro Fac Fac Ext Cet Arc Hub Fac Res Arm Res DSF Acc Machines Accessed 129 | . 9 1 13 . . 15 1 . . . 18 21 8 3 1 1 12 7 9 1 . 9 Terminals 35 | . 7 . 7 . . 8 . . . . . 1 7 3 . . . . 1 1 . . Fabricators 22 | . . . . . . . . . . . 4 5 . . . . 3 2 6 . . 2 Repair Stations 16 | . . . 1 . . 1 . . . . 2 2 . . . . 3 3 2 . . 2 Recycling Units 22 | . 2 . 2 . . 2 . . . . 6 7 1 . . . 2 . . . . . Scanalyzers 13 | . . . 2 . . 3 . . . . 3 3 . . . . 1 . . . . 1 Garrison Access 18 | . . . 1 . . 1 . . . . 3 3 . . . 1 3 2 . . . 4 Total Hacks 407 | . 25 3 36 . . 43 1 . . . 44 49 14 12 25 1 51 26 45 1 . 31 Successful 263 | . 19 3 25 . . 34 1 . . . 31 31 8 9 25 1 26 12 24 1 . 13 Failed 144 | . 6 . 11 . . 9 . . . . 13 18 6 3 . . 25 14 21 . . 18 Catastrophic 19 | . 1 . 3 . . 2 . . . . . 1 . . . . 1 3 2 . . 6 Database Lockouts . | . . . . . . . . . . . . . . . . . . . . . . . Manual 319 | . 18 . 18 . . 21 . . . . 43 38 10 . . 41 28 31 25 . . 46 Terminals 93 | . 21 . 23 . . 21 . . . . . 1 13 12 . . . . 1 1 . . Fabricators 99 | . . . . . . . . . . . 10 15 . . . . 26 6 32 . . 10 Repair Stations 44 | . . . 2 . . 2 . . . . 2 3 . . . . 5 14 12 . . 4 Recycling Units 45 | . 4 . 4 . . 5 . . . . 12 12 1 . . . 7 . . . . . Scanalyzers 61 | . . . 6 . . 14 . . . . 15 13 . . . . 7 . . . . 6 Garrison Access 36 | . . . 1 . . 1 . . . . 5 5 . . . 1 6 6 . . . 11 Terminal Hacks 62 | . 8 3 1 . . 5 1 . . . . 1 7 9 25 . . . 1 1 . . Record 41 | . 4 3 . . . . . . . . . . . 8 25 . . . 1 . . . Part Schematic 2 | . . . . . . 2 . . . . . . . . . . . . . . . . Prototype ID Bank 1 | . . . 1 . . . . . . . . . . . . . . . . . . . Open Door 9 | . . . . . . . 1 . . . . . 7 1 . . . . . . . . Open DSF 2 | . . . . . . . . . . . . 1 . . . . . . . 1 . . Scanalyzer Index 1 | . 1 . . . . . . . . . . . . . . . . . . . . . Reinforcement Status 1 | . 1 . . . . . . . . . . . . . . . . . . . . . Recall Investigation 1 | . . . . . . 1 . . . . . . . . . . . . . . . . Recall Extermination 1 | . . . . . . 1 . . . . . . . . . . . . . . . . Recall Reinforcements 1 | . 1 . . . . . . . . . . . . . . . . . . . . . Registered Components 1 | . 1 . . . . . . . . . . . . . . . . . . . . . Zone Layout 1 | . . . . . . 1 . . . . . . . . . . . . . . . . Fabricator Hacks 54 | . . . . . . . . . . . 6 8 . . . . 15 3 18 . . 4 Load Schematic 28 | . . . . . . . . . . . 4 4 . . . . 8 1 9 . . 2 Build 26 | . . . . . . . . . . . 2 4 . . . . 7 2 9 . . 2 Repair Station Hacks 13 | . . . 2 . . 2 . . . . . . . . . . . 6 3 . . . Scan Component 7 | . . . 1 . . 1 . . . . . . . . . . . 3 2 . . . Repair 6 | . . . 1 . . 1 . . . . . . . . . . . 3 1 . . . Recycling Unit Hacks 11 | . . . 3 . . 3 . . . . 3 1 . . . . 1 . . . . . Report Inventory 8 | . . . 2 . . 2 . . . . 2 1 . . . . 1 . . . . . Retrieve Components 3 | . . . 1 . . 1 . . . . 1 . . . . . . . . . . . Scanalyzer 42 | . . . 5 . . 12 . . . . 11 9 . . . . 1 . . . . 4 Insert Component 11 | . . . . . . 4 . . . . 3 3 . . . . 1 . . . . . Analyze 11 | . . . . . . 4 . . . . 3 4 . . . . . . . . . . Retrieve Study 20 | . . . 5 . . 4 . . . . 5 2 . . . . . . . . . 4 Garrison Access Hacks 15 | . . . 1 . . 1 . . . . 3 2 . . . 1 3 1 . . . 3 Seal Access 15 | . . . 1 . . 1 . . . . 3 2 . . . 1 3 1 . . . 3 Unauthorized Hacks 65 | . 10 . 13 . . 11 . . . . 8 10 1 . . . 6 2 2 . . 2 Terminals 28 | . 7 . 12 . . 9 . . . . . . . . . . . . . . . . Botnet 10 | . 2 . 5 . . 3 . . . . . . . . . . . . . . . . Skim 18 | . 5 . 7 . . 6 . . . . . . . . . . . . . . . . Fabricators 2 | . . . . . . . . . . . . 1 . . . . 1 . . . . . Liberate 1 | . . . . . . . . . . . . . . . . . 1 . . . . . Download 1 | . . . . . . . . . . . . 1 . . . . . . . . . . Repair Stations 12 | . . . . . . . . . . . 1 2 . . . . 3 2 2 . . 2 Patch 12 | . . . . . . . . . . . 1 2 . . . . 3 2 2 . . 2 Recycling Units 23 | . 3 . 1 . . 2 . . . . 7 7 1 . . . 2 . . . . . Reject 3 | . 1 . . . . . . . . . 1 . 1 . . . . . . . . . Tunnel 20 | . 2 . 1 . . 2 . . . . 6 7 . . . . 2 . . . . . Scanalyzers . | . . . . . . . . . . . . . . . . . . . . . . . Garrison Access . | . . . . . . . . . . . . . . . . . . . . . . . Data Cores Recovered 5 | . . . . . . . . . . . . 1 . . . 2 1 . 1 . . . Used . | . . . . . . . . . . . . . . . . . . . . . . . Hacking Detections 72 | . 6 . 9 . . 11 . . . . 7 11 2 3 . . 5 4 7 . . 7 Full Trace Events 18 | . . . 1 . . 3 . . . . 2 3 . . . . 3 2 1 . . 3 Feedback Events 3 | . . . . . . . . . . . . . . . . . 1 1 . . . 1 Corruption 3 | . . . . . . . . . . . . . . . . . 1 1 . . . 1 Feedback Blocked . | . . . . . . . . . . . . . . . . . . . . . . . Robot Schematics Acquired 58 | . . . . . . . . . 3 . 9 . . . . 4 . . 42 . . . Robots Built 7 | . . . . . . . . . . . 4 . . . . . . . 1 . . 2 Authchips . | . . . . . . . . . . . . . . . . . . . . . . . Time 380 | . . . . . . . . . . . 81 . . . . . . . 231 . . 68 Total Robot Build Rating 27 | . . . . . . . . . . . 4 . . . . . . . 7 . . 16 Part Schematics Acquired 70 | . . . . . . 6 . . 13 . 3 3 . . . 35 . 10 . . . . Parts Built 36 | . . . . . . . . . . . 2 7 . . . . 7 4 14 . . 2 Authchips . | . . . . . . . . . . . . . . . . . . . . . . . Time 1298 | . . . . . . . . . . . 95 252 . . . . 588 111 224 . . 28 Total Part Build Rating 172 | . . . . . . . . . . . 10 30 . . . . 42 26 56 . . 8 Part Studies Acquired 20 | . . . 5 . . 4 . . . . 5 2 . . . . . . . . . 4 Parts Repaired 6 | . . . 1 . . 1 . . . . . . . . . . . 3 1 . . . Time 260 | . . . 38 . . 26 . . . . . . . . . . . 160 36 . . . Parts Recycled . | . . . . . . . . . . . . . . . . . . . . . . . Recycled Matter . | . . . . . . . . . . . . . . . . . . . . . . . Retrieved Matter . | . . . . . . . . . . . . . . . . . . . . . . . Retrieved Components 26 | . . . 10 . . 9 . . . . 7 . . . . . . . . . . . Parts Scanalyzed 11 | . . . . . . 4 . . . . 3 3 . . . . 1 . . . . . Part Schematics Acquired 10 | . . . . . . 4 . . . . 3 3 . . . . . . . . . . Parts Damaged 1 | . . . . . . . . . . . 1 . . . . . . . . . . . Bothacking | -11 -10 -10 -8 -7 -7 -7 -7 -7 -7 -6 -6 -5 -5 -5 -5 -5 -4 -3 -3 -2 -2 -1 ------------ Run | Yrd Mat Sub Mat Fac Was Fac Low Low Zio Pro Fac Fac Ext Cet Arc Hub Fac Res Arm Res DSF Acc Used RIF Installer . | . . . . . . . . . . . . . . . . . . . . . . . Robots Hacked . | . . . . . . . . . . . . . . . . . . . . . . . Non-combat . | . . . . . . . . . . . . . . . . . . . . . . . Combat . | . . . . . . . . . . . . . . . . . . . . . . . Robot Hacks Applied . | . . . . . . . . . . . . . . . . . . . . . . . Relay Couplers Released 7 | . . . . . . . . . . . . 3 . . . . . 3 . . . 1 Machine Destruction 4 | . . . . . . . . . . . . 3 . . . . . . . . . 1 Programmers 3 | . . . . . . . . . . . . . . . . . . 3 . . . . Fabnet Peak Effective % . | . . . . . . . . . . . . . . . . . . . . . . . Robots Rewired 7 | . . . . . . . . . . . . . . . . . . . 7 . . . Allies Hacked 3 | . . . . . . . . . . . . . . . . . . 1 2 . . . Hacks Repelled . | . . . . . . . . . . . . . . . . . . . . . . . Allies | -11 -10 -10 -8 -7 -7 -7 -7 -7 -7 -6 -6 -5 -5 -5 -5 -5 -4 -3 -3 -2 -2 -1 -------- Run | Yrd Mat Sub Mat Fac Was Fac Low Low Zio Pro Fac Fac Ext Cet Arc Hub Fac Res Arm Res DSF Acc Total Allies 109 | . . . . . 18 . . . 4 . 13 7 15 . . 2 6 4 24 . . 16 Largest Group 18 | . . . . . 18 10 . . 4 4 4 4 11 11 4 2 3 4 10 . . 6 Highest-Rated Group 664 | . . . . . 444 304 . . 156 156 238 218 623 623 211 54 141 368 481 . . 664 Highest-Rated Ally 269 | . . . . . 35 35 . . 41 41 85 127 119 85 85 28 49 103 96 . . 269 Zionite Dispatches 31 | . . . . . . . . . . . 4 4 4 . . 3 1 2 4 . . 9 Heavy 5 | . . . . . . . . . . . 1 . 1 . . . . 1 . . . 2 Light 4 | . . . . . . . . . . . 1 . 1 . . . . . 1 . . 1 Recon 1 | . . . . . . . . . . . . . . . . 1 . . . . . . Fire 1 | . . . . . . . . . . . . 1 . . . . . . . . . . Hacker 4 | . . . . . . . . . . . 1 . 1 . . . . 1 . . . 1 Demo 1 | . . . . . . . . . . . . . 1 . . . . . . . . . Experimental 1 | . . . . . . . . . . . . . . . . . . . . . . 1 Hero 1 | . . . . . . . . . . . . 1 . . . . . . . . . . Thermal Resupply 4 | . . . . . . . . . . . . . . . . 1 . . 1 . . 2 Kinetic Resupply 1 | . . . . . . . . . . . 1 . . . . . . . . . . . Resource Resupply 1 | . . . . . . . . . . . . . . . . . 1 . . . . . Offense Resupply 2 | . . . . . . . . . . . . 1 . . . . . . 1 . . . Heavy Resupply 1 | . . . . . . . . . . . . 1 . . . . . . . . . . Infowar Resupply 1 | . . . . . . . . . . . . . . . . 1 . . . . . . Hover Resupply 1 | . . . . . . . . . . . . . . . . . . . . . . 1 Zionite Resupply 2 | . . . . . . . . . . . . . . . . . . . 1 . . 1 Total Orders 20 | . . . . . . . . . . . . 4 . . . 4 2 . 6 . . 4 STAY 5 | . . . . . . . . . . . . 2 . . . 2 1 . . . . . ROAM 3 | . . . . . . . . . . . . . . . . . . . 3 . . . DROP 12 | . . . . . . . . . . . . 2 . . . 2 1 . 3 . . 4 Ally Attacks 534 | . . . . . 76 31 . . . 41 22 30 47 57 12 . 22 19 85 . . 92 Total Damage 20090 | . . . . . 3456 651 . . . 924 1142 1168 1410 1549 328 . 662 958 2765 . . 5077 Kills 94 | . . . . . 9 5 . . . 6 8 7 10 8 1 . 3 2 16 . . 19 Allies Corrupted 6 | . . . . . . . . . . . . 1 . . . . . 1 1 . . 3 Allies Melted 1 | . . . . . . . . . . . . . 1 . . . . . . . . . Intel | -11 -10 -10 -8 -7 -7 -7 -7 -7 -7 -6 -6 -5 -5 -5 -5 -5 -4 -3 -3 -2 -2 -1 ------- Run | Yrd Mat Sub Mat Fac Was Fac Low Low Zio Pro Fac Fac Ext Cet Arc Hub Fac Res Arm Res DSF Acc Active Infowar (turns) 16898 | 1 576 . 147 . . . . . . . 2 . . . . 1451 2822 5286 3651 123 254 2585 Optics 412 | . 411 . . . . . . . . . . . . . . . 1 . . . . . IFF 1344 | . . . . . . . . . . . . . . . . . . . 1344 . . . Structural 313 | 1 165 . 147 . . . . . . . . . . . . . . . . . . . Seismic 1 | . . . . . . . . . . . . . . . . . . . . . . 1 Triangulation 13947 | . . . . . . . . . . . . . . . . 1451 2822 5286 3651 123 254 360 Cloaking 2225 | . . . . . . . . . . . . . . . . . . . . . . 2225 Jamming 3763 | . . . . . . . . . . . 2 . . . . 1 . 3760 . . . . ECM 1 | . . . . . . . . . . . . . . . . . 1 . . . . . Robot Analysis Total 90 | . . . . . . . . . . . . . . . . . . . 90 . . . Derelict Logs Recovered 4 | . . 1 . . . . . 1 1 1 . . . . . . . . . . . . Drone Launches 2 | . . . . . . . . . . . . . . . . 2 . . . . . . Drone Recoveries . | . . . . . . . . . . . . . . . . . . . . . . . Zionite Intel Received 41 | . . . . . . . . . . . 8 4 . . . 10 4 7 3 . . 5 Main Access 2 | . . . . . . . . . . . 1 . . . . . . 1 . . . . Branch Access 1 | . . . . . . . . . . . 1 . . . . . . . . . . . Emergency Access 3 | . . . . . . . . . . . . . . . . 1 . . 1 . . 1 Guard Positions 2 | . . . . . . . . . . . 1 . . . . 1 . . . . . . Component Stockpiles 1 | . . . . . . . . . . . . . . . . . 1 . . . . . Prototype Stockpiles 5 | . . . . . . . . . . . 1 1 . . . 1 . 1 . . . 1 Component Schematics 1 | . . . . . . . . . . . . . . . . 1 . . . . . . Prototype Schematics 3 | . . . . . . . . . . . . . . . . 2 . 1 . . . . Unaware Schematics 4 | . . . . . . . . . . . 2 . . . . 1 . . 1 . . . Unaware Analyses 5 | . . . . . . . . . . . 1 1 . . . . 1 1 1 . . . Trap Installations 4 | . . . . . . . . . . . . 1 . . . 1 . 1 . . . 1 Active Terminals 2 | . . . . . . . . . . . . . . . . . . 1 . . . 1 Active Garrisons 1 | . . . . . . . . . . . . . . . . . 1 . . . . . Depthwide Sectors/0 4 | . . . . . . . . . . . . 1 . . . 1 . 1 . . . 1 Depthwide Sectors/-1 3 | . . . . . . . . . . . 1 . . . . 1 1 . . . . . Exploration | -11 -10 -10 -8 -7 -7 -7 -7 -7 -7 -6 -6 -5 -5 -5 -5 -5 -4 -3 -3 -2 -2 -1 ------------- Run | Yrd Mat Sub Mat Fac Was Fac Low Low Zio Pro Fac Fac Ext Cet Arc Hub Fac Res Arm Res DSF Acc Turns Passed 41661 | 65 1015 1257 1979 164 347 1714 625 844 1625 1648 4059 3001 1495 703 250 2369 2822 5337 3651 123 254 6314 Spaces Moved 21390 | 36 538 795 1187 98 184 909 366 504 994 914 2153 1637 856 351 140 1125 1094 2211 1429 74 125 3670 Core 87 | 6 . 81 . . . . . . . . . . . . . . . . . . . . Treads 18347 | 30 538 231 601 98 184 909 366 504 994 914 1897 6 856 351 140 1125 1094 2211 1429 74 125 3670 Legs . | . . . . . . . . . . . . . . . . . . . . . . . Wheels 2956 | . . 483 586 . . . . . . . 256 1631 . . . . . . . . . . Hover . | . . . . . . . . . . . . . . . . . . . . . . . Flight . | . . . . . . . . . . . . . . . . . . . . . . . Fastest Speed 50 | 50 160 110 102 163 163 163 160 160 160 160 115 90 161 152 160 160 160 160 160 160 145 145 Average Speed 155 | 141 160 133 140 163 163 163 160 160 160 160 151 93 161 159 160 160 160 201 185 160 150 145 Slowest Speed 250 | 160 160 200 250 163 163 165 163 160 160 160 160 225 161 161 160 160 160 240 240 160 160 185 Overloaded Moves . | . . . . . . . . . . . . . . . . . . . . . . . Propulsion Burnouts . | . . . . . . . . . . . . . . . . . . . . . . . Robots Hopped . | . . . . . . . . . . . . . . . . . . . . . . . Potential Cave-ins . | . . . . . . . . . . . . . . . . . . . . . . . Cave-ins Triggered . | . . . . . . . . . . . . . . . . . . . . . . . Exploration Rate (%) 67 | 3 88 62 99 4 93 26 60 78 92 87 70 56 89 96 89 96 31 71 89 3 81 90 Regions Visited 22 Branch Regions 10 Pre-discovered Areas 67 | . 2 2 1 . . 3 . . 4 1 14 15 . . . 13 6 4 . . . 2 Known Exits Taken 19 | 1 1 1 1 . . 1 1 1 1 1 1 1 1 1 1 1 1 1 1 1 . . Unknown Exits Taken . | . . . . . . . . . . . . . . . . . . . . . . . Scrap Searched 13 | . . 2 . . . . . 1 5 5 . . . . . . . . . . . . Spaces Dug 532 | . . . . . . . . . . . . . . . . . . . . . . 532 Terrain Destroyed 1073 | . 1 . 10 . 203 . 1 . . . 7 28 . . . . . 4 68 . . 751 Melee . | . . . . . . . . . . . . . . . . . . . . . . . Projectile 20 | . 1 . 10 . . . 1 . . . 7 . . . . . . . 1 . . . AOE 1053 | . . . . . 203 . . . . . . 28 . . . . . 4 67 . . 751 Terrain Rammed . | . . . . . . . . . . . . . . . . . . . . . . . Walls Destroyed . | . . . . . . . . . . . . . . . . . . . . . . . Machines Disabled . | . . . . . . . . . . . . . . . . . . . . . . . Actions | -11 -10 -10 -8 -7 -7 -7 -7 -7 -7 -6 -6 -5 -5 -5 -5 -5 -4 -3 -3 -2 -2 -1 --------- Run | Yrd Mat Sub Mat Fac Was Fac Low Low Zio Pro Fac Fac Ext Cet Arc Hub Fac Res Arm Res DSF Acc Total 27027 | 50 626 945 1403 103 208 1093 383 516 1029 1000 2677 2787 955 443 149 1438 1915 2786 2112 80 163 4166 Wait 3369 | . 29 110 97 1 6 128 . . 28 18 313 920 84 28 3 111 577 304 410 . 7 195 Move 21368 | 35 537 794 1186 98 183 908 365 503 993 913 2152 1636 855 350 139 1124 1093 2210 1428 73 124 3669 Hop . | . . . . . . . . . . . . . . . . . . . . . . . Pick Up 365 | 8 13 8 27 1 4 13 2 1 3 7 41 29 3 7 . 20 54 47 35 2 6 34 Fast Attach . | . . . . . . . . . . . . . . . . . . . . . . . Attach 171 | 7 3 4 10 2 2 3 . 1 1 2 14 9 1 2 . 6 30 33 12 3 5 21 Detach 15 | . . . 1 . . . . . 1 . 2 1 . . . 2 6 2 . . . . Swap 284 | . 7 3 21 1 2 11 3 1 2 6 29 24 3 9 . 32 13 30 40 . 5 42 Drop 248 | . 7 6 19 . 4 10 4 . 1 9 30 24 2 8 . 15 25 30 23 2 7 22 Fire 1036 | . 29 20 39 . 7 19 9 10 . 45 94 133 7 7 7 74 114 123 114 . 9 176 Melee . | . . . . . . . . . . . . . . . . . . . . . . . Ram 3 | . . . . . . . . . . . . 3 . . . . . . . . . . Kick . | . . . . . . . . . . . . . . . . . . . . . . . Crush 28 | . 1 . 3 . . 1 . . . . 2 . . . . 4 3 7 . . . 7 Escape Stasis 8 | . . . . . . . . . . . . 8 . . . . . . . . . . Rewire 50 | . . . . . . . . . . . . . . . . . . . 50 . . . Trap . | . . . . . . . . . . . . . . . . . . . . . . . Miscellaneous 82 | . . . . . . . . . . . . . . 32 . 50 . . . . . . Route ------- -11/Scrapyard -10/Materials (discovered 6 exits: *Mat x3 / *Min x2 / *Sub) -10/Subcaves -8/Materials (discovered 3 exits: *Fac x3) -7/Factory -7/Waste -7/Factory (discovered 5 exits: *Fac x2 / *Sto / *Low x2) -7/Lower Caves -7/Lower Caves (discovered 2 exits: *Fac / *Zio) -7/Zion -6/Proximity Caves -6/Factory (discovered 6 exits: *Fac x4 / *Low x2) -5/Factory (discovered 4 exits: *Fac x2 / *Ext x2) -5/Extension (discovered 3 exits: *Fac x2 / *Cet) -5/Cetus (discovered 3 exits: *Fac x2 / *Arc) -5/Archives (discovered 2 exits: *Hub x2) -5/Hub_04(d) (discovered 4 exits: *Fac x4) -4/Factory -3/Research (discovered 6 exits: *Res x3 / *Arm / *Qua x2) -3/Armory -2/Research -2/DSF -1/Access To Epsilon Eridani History --------- Turn | Location | Event 5 | -11/Scrapyard | Identified exit to Materials 5 | -11/Scrapyard | Discovered exit to Materials (range 16) 66 | -11/Scrapyard | Entered Materials 66 | -10/Materials | Evolved 1 slot: Weapon x1 234 | -10/Materials | Identified exit to Mines 234 | -10/Materials | Discovered exit to Mines (range 12) 378 | -10/Materials | Identified exit to Materials 378 | -10/Materials | Discovered exit to Materials (range 14) 455 | -10/Materials | Build established: Hacker-Skirmisher 526 | -10/Materials | Discovered exit to Materials (range 14) 662 | -10/Materials | Identified exit to Subcaves 662 | -10/Materials | Discovered exit to Subcaves (range 10) 847 | -10/Materials | Discovered exit to Mines (range 15) 929 | -10/Materials | Build established: Hacker-Gunner 944 | -10/Materials | Learned 4 Subcaves zone layouts 1081 | -10/Materials | Entered Subcaves 1329 | -10/Subcaves | Shifting Twisted Machinery released Sub. Power Source 1339 | -10/Subcaves | Shifting Twisted Machinery released Sub. Monowheel 1440 | -10/Subcaves | Visited Clippyterm 1445 | -10/Subcaves | Learned location of Deep Caves (-7) 1501 | -10/Subcaves | Build established: Hacker-Tank 1557 | -10/Subcaves | Learned location of Zion (-7) 1557 | -10/Subcaves | Met a Zionite searching for "candidates" 1974 | -10/Subcaves | Shifting Twisted Machinery released Mak. Flight Unit 2214 | -10/Subcaves | Disturbed a concealed Subdweller 2286 | -10/Subcaves | A swath of the cavern ceiling suddenly collapsed 2333 | -10/Subcaves | Identified exit to Materials 2333 | -10/Subcaves | Discovered exit to Materials (range 5) 2338 | -10/Subcaves | Entered Materials 2338 | -8/Materials | Evolved 4 slots: Power x1, Utility x2, Weapon x1 2732 | -8/Materials | Identified exit to Factory 2732 | -8/Materials | Discovered exit to Factory (range 8) 2769 | -8/Materials | Met 7R-MNS 3071 | -8/Materials | Build established: Hacker-Gunner 3128 | -8/Materials | Discovered exit to Factory (range 4) 3518 | -8/Materials | Discovered exit to Factory (range 10) 3696 | -8/Materials | Repaired Nuclear Core+ 3836 | -8/Materials | Learned location of 2 exits from Lower Caves 4146 | -8/Materials | Learned location of 1 exit from Extension 4182 | -8/Materials | Learned location of 1 exit from Recycling 4207 | -8/Materials | Learned Storage security intel 4222 | -8/Materials | Learned location of 1 exit from Storage 4245 | -8/Materials | Learned location of 1 exit from Extension 4317 | -8/Materials | Entered Factory 4317 | -7/Factory | Evolved 2 slots: Propulsion x1, Utility x1 4318 | -7/Factory | Caught up to 7R-MNS 4481 | -7/Factory | Sucked down chute 4481 | -7/Factory | Entered Waste 4523 | -7/Waste | Warlord forces began an assault 4528 | -7/Waste | Found Prototype Launcher 4529 | -7/Waste | Identified Scatter Rocket Array 4538 | -7/Waste | Spotted C-40 Crusher 4540 | -7/Waste | Allies destroyed C-40 Crusher 4571 | -7/Waste | Lost 5 allies 4597 | -7/Waste | Spotted C-40 Crusher 4608 | -7/Waste | Allies destroyed C-40 Crusher 4626 | -7/Waste | Spotted C-40 Crusher 4627 | -7/Waste | Spotted C-40 Crusher 4633 | -7/Waste | Destroyed C-40 Crusher 4637 | -7/Waste | Allies destroyed C-40 Crusher 4652 | -7/Waste | Spotted C-40 Crusher 4657 | -7/Waste | Destroyed C-40 Crusher 4668 | -7/Waste | Spotted C-40 Crusher 4688 | -7/Waste | Allies destroyed C-40 Crusher 4756 | -7/Waste | Identified exit to Factory 4756 | -7/Waste | Discovered exit to Factory (range 12) 4828 | -7/Waste | Entered Factory 4828 | -7/Factory | Accompanied by 10 allies 5151 | -7/Factory | Build established: Scientist-Gunner 5304 | -7/Factory | Lost 8 allies 5370 | -7/Factory | Identified exit to Factory 5370 | -7/Factory | Discovered exit to Factory (range 16) 5425 | -7/Factory | Identified exit to Storage 5425 | -7/Factory | Discovered exit to Storage (range 15) 5900 | -7/Factory | Learned Hub_04(d) stockpile data 5939 | -7/Factory | Learned location of Upper Caves (-5) 5966 | -7/Factory | Identified exit to Lower Caves 5985 | -7/Factory | Learned 2 Extension zone layouts 6012 | -7/Factory | Learned Hub_04(d) garrison access intel 6122 | -7/Factory | Repaired Lgt. Treads+ 6542 | -7/Factory | Entered Lower Caves 6543 | -7/Lower Caves | Identified exit to Lower Caves 6580 | -7/Lower Caves | Attracted the attention of an 0b10 outpost 6723 | -7/Lower Caves | Build established: Hacker-Gunner 7167 | -7/Lower Caves | Entered another Lower Caves area 7204 | -7/Lower Caves | Encountered a Warlord checkpoint 7469 | -7/Lower Caves | Learned Factory terminal intel 7966 | -7/Lower Caves | Identified exit to Zion 7966 | -7/Lower Caves | Discovered exit to Zion (range 7) 8011 | -7/Lower Caves | Entered Zion 8039 | -7/Zion | Learned 8 Factory zone layouts 8129 | -7/Zion | Given A8's code to call for help 8161 | -7/Zion | Identified exit to Proximity Caves 8161 | -7/Zion | Discovered exit to Proximity Caves (range 9) 8252 | -7/Zion | Learned location of Armory (-3) 8258 | -7/Zion | Acquired unknown access codes intercepted by a Zionite 8509 | -7/Zion | Found Prototype Device 8510 | -7/Zion | Identified Phasing AFG 8913 | -7/Zion | Found CR-A16's Pointy Stick 9172 | -7/Zion | Met Imprinter 9199 | -7/Zion | Imprinted 9201 | -7/Zion | Declared Zion's savior 9636 | -7/Zion | Entered Proximity Caves 9636 | -6/Proximity Caves | Accompanied by 4 allies 9638 | -6/Proximity Caves | Attracted the attention of an 0b10 checkpoint 9654 | -6/Proximity Caves | Spotted B-75 Beast 10190 | -6/Proximity Caves | Discovered exit to Factory (range 11) 10467 | -6/Proximity Caves | Attracted the attention of an 0b10 outpost 10520 | -6/Proximity Caves | Destroyed 7 combat bots 10913 | -6/Proximity Caves | Build established: Scavenger-Gunner 11284 | -6/Proximity Caves | Entered Factory 11284 | -6/Factory | Evolved 2 slots: Utility x2 11285 | -6/Factory | Identified exit to Factory 11285 | -6/Factory | Identified exit to Lower Caves 11286 | -6/Factory | Loaded intel: 26 terminal locations 11496 | -6/Factory | Retrieved Zion intel report: Depthwide Sectors/-5 11497 | -6/Factory | Zion Light squad teleported in 11663 | -6/Factory | Fabricated Plasma Rifle (x2) 11681 | -6/Factory | Found Prototype Protection 11682 | -6/Factory | Identified Zio. Weapon Casing 11964 | -6/Factory | Build established: Messiah-Gunner 12168 | -6/Factory | Discovered exit to Factory (range 8) 12296 | -6/Factory | Retrieved Zion intel report: Main Access 12334 | -6/Factory | Retrieved Zion intel report: Unaware Schematics 12708 | -6/Factory | Retrieved Zion intel report: Unaware Schematics 13268 | -6/Factory | Retrieved Zion intel report: Guard Positions 13406 | -6/Factory | Garrison activated, responded to threat 13428 | -6/Factory | Build established: Scientist-Gunner 13734 | -6/Factory | Discovered exit to Lower Caves (range 15) 13825 | -6/Factory | Fabricated K-01 Serf (x4) 13986 | -6/Factory | Retrieved Zion intel report: Unaware Analyses 14044 | -6/Factory | Lost 4 allies 14316 | -6/Factory | Retrieved Zion intel report: Prototype Stockpiles 14356 | -6/Factory | Retrieved Zion intel report: Branch Access 14357 | -6/Factory | Zion Heavy squad teleported in 14872 | -6/Factory | Spotted B-75 Beast 14884 | -6/Factory | Allies destroyed B-75 Beast 15112 | -6/Factory | Zion Hacker squad teleported in 15311 | -6/Factory | Zion Kinetic Resupply teleported in 15343 | -6/Factory | Entered another Factory area 15343 | -5/Factory | Accompanied by 4 allies 15343 | -5/Factory | Evolved 2 slots: Propulsion x1, Utility x1 15344 | -5/Factory | Identified exit to Extension 15415 | -5/Factory | Garrison activated, responded to threat 15491 | -5/Factory | Lost 4 allies 15659 | -5/Factory | Build established: Hacker-Gunner 15776 | -5/Factory | Fabricated Gatling Laser (x2) 15926 | -5/Factory | Garrison activated, responded to threat 16303 | -5/Factory | Identified exit to Factory 16303 | -5/Factory | Discovered exit to Factory (range 8) 16368 | -5/Factory | Garrison activated, responded to threat 16387 | -5/Factory | Discovered exit to Factory (range 4) 16435 | -5/Factory | Zion Fire squad teleported in 16438 | -5/Factory | Destroyed 9 combat bots 16543 | -5/Factory | First assault squad dispatched 16578 | -5/Factory | Retrieved Zion intel report: Prototype Stockpiles 17130 | -5/Factory | P-70 Sage assimilated allied 9W-7SK(i) 17378 | -5/Factory | Cargo convoy interrupted 17528 | -5/Factory | Fabricated Gatling Laser (x2) 17578 | -5/Factory | Destroyed 7 combat bots 17678 | -5/Factory | Fabricated Gatling Laser (x2) 17788 | -5/Factory | Retrieved Zion intel report: Unaware Analyses 17789 | -5/Factory | Zion Offense Resupply teleported in 17801 | -5/Factory | Zion Heavy Resupply teleported in 17936 | -5/Factory | Retrieved Zion intel report: Trap Installations 17971 | -5/Factory | Spotted B-75 Beast 17985 | -5/Factory | Destroyed B-75 Beast 18127 | -5/Factory | Fabricated Hvy. Gatling Laser (x1) 18174 | -5/Factory | Retrieved Zion intel report: Depthwide Sectors/-5 18175 | -5/Factory | Zion hero teleported in (CL-ANK) 18309 | -5/Factory | Discovered exit to Extension (range 7) 18344 | -5/Factory | Entered Extension 18344 | -5/Extension | Accompanied by 1 ally (CL-ANK) 18345 | -5/Extension | Identified exit to Cetus 18395 | -5/Extension | Rescued a captive Derelict 18417 | -5/Extension | Zion Demo squad teleported in 18427 | -5/Extension | Rescued a captive Derelict 18427 | -5/Extension | Rescued a captive Derelict 18498 | -5/Extension | Zion Heavy squad teleported in 18682 | -5/Extension | Rescued a captive Derelict 18684 | -5/Extension | Rescued a captive Derelict 18872 | -5/Extension | Energy Cycler disabled 18872 | -5/Extension | Rescued a captive Derelict 18872 | -5/Extension | Rescued a captive Derelict 18872 | -5/Extension | Rescued a captive Derelict 18873 | -5/Extension | Rescued a captive Derelict 18873 | -5/Extension | Rescued a captive Derelict 18878 | -5/Extension | Rescued a captive Derelict 18878 | -5/Extension | Rescued a captive Derelict 19064 | -5/Extension | Spotted B-75 Beast 19070 | -5/Extension | Destroyed B-75 Beast 19080 | -5/Extension | Discovered exit to Factory (range 16) 19107 | -5/Extension | Extracted ID and sensor layout for unrecognized location from A7's data core 19249 | -5/Extension | Zion Hacker squad teleported in 19360 | -5/Extension | Zion Light squad teleported in 19839 | -5/Extension | Entered Cetus 19839 | -5/Cetus | Accompanied by 11 allies 19862 | -5/Cetus | Spotted Cetus Guard 19862 | -5/Cetus | Spotted Cetus Guard 19865 | -5/Cetus | Spotted Cetus Guard 19866 | -5/Cetus | Spotted Cetus Guard 19872 | -5/Cetus | Allies destroyed Cetus Guard 19876 | -5/Cetus | Allies destroyed Cetus Guard 19877 | -5/Cetus | Allies destroyed Cetus Guard 19882 | -5/Cetus | Allies destroyed Cetus Guard 19907 | -5/Cetus | Lost 4 allies 19983 | -5/Cetus | Discovered exit to Factory (range 15) 20192 | -5/Cetus | Build established: Scavenger-Tank 20370 | -5/Cetus | Identified exit to Archives 20370 | -5/Cetus | Discovered exit to Archives (range 15) 20402 | -5/Cetus | Spotted Cetus Guard 20402 | -5/Cetus | Spotted Cetus Guard 20404 | -5/Cetus | Spotted Cetus Guard 20404 | -5/Cetus | Spotted Cetus Guard 20407 | -5/Cetus | Allies destroyed Cetus Guard 20408 | -5/Cetus | Destroyed Cetus Guard 20415 | -5/Cetus | Allies destroyed Cetus Guard 20423 | -5/Cetus | Destroyed Cetus Guard 20430 | -5/Cetus | Discovered exit to Factory (range 16) 20440 | -5/Cetus | Scared off Revision 17 20444 | -5/Cetus | Lost 3 allies 20542 | -5/Cetus | Entered Archives 20542 | -5/Archives | Accompanied by 4 allies 20589 | -5/Archives | Lost 3 allies 20602 | -5/Archives | Unable to access archive contents 20618 | -5/Archives | Unable to access archive contents 20634 | -5/Archives | Unable to access archive contents 20652 | -5/Archives | Unable to access archive contents 20655 | -5/Archives | Identified exit to Hub_04(d) 20655 | -5/Archives | Discovered exit to Hub_04(d) (range 15) 20714 | -5/Archives | Discovered exit to Hub_04(d) (range 15) 20792 | -5/Archives | Entered Hub_04(d) 20794 | -5/Hub_04(d) | Loaded intel: 1 garrison access location 20904 | -5/Hub_04(d) | Retrieved Zion intel report: Trap Installations 20928 | -5/Hub_04(d) | Retrieved Zion intel report: Emergency Access 21026 | -5/Hub_04(d) | Discovered exit to Factory (range 2) 21071 | -5/Hub_04(d) | Retrieved Zion intel report: Prototype Stockpiles 21121 | -5/Hub_04(d) | Discovered exit to Factory (range 15) 21455 | -5/Hub_04(d) | Spotted B-75 Beast 21462 | -5/Hub_04(d) | Destroyed B-75 Beast 21564 | -5/Hub_04(d) | Discovered exit to Factory (range 16) 21584 | -5/Hub_04(d) | Retrieved Zion intel report: Component Schematics 21701 | -5/Hub_04(d) | Retrieved Zion intel report: Depthwide Sectors/-4 21702 | -5/Hub_04(d) | Zion Infowar Resupply teleported in 21801 | -5/Hub_04(d) | Zion Thermal Resupply teleported in 21852 | -5/Hub_04(d) | Zion Recon squad teleported in 22089 | -5/Hub_04(d) | Build established: Hacker-Gunner 22139 | -5/Hub_04(d) | Retrieved Zion intel report: Prototype Schematics 22174 | -5/Hub_04(d) | Network Hub disabled 22235 | -5/Hub_04(d) | Network Hub disabled 22284 | -5/Hub_04(d) | Spotted Lightning 22285 | -5/Hub_04(d) | Spotted Lightning 22291 | -5/Hub_04(d) | Spotted Lightning 22293 | -5/Hub_04(d) | Destroyed Lightning 22326 | -5/Hub_04(d) | Retrieved Zion intel report: Guard Positions 22338 | -5/Hub_04(d) | Destroyed Lightning 22400 | -5/Hub_04(d) | Spotted Lightning 22400 | -5/Hub_04(d) | Spotted Lightning 22400 | -5/Hub_04(d) | Spotted Lightning 22425 | -5/Hub_04(d) | Destroyed Lightning 22428 | -5/Hub_04(d) | Destroyed Lightning 22435 | -5/Hub_04(d) | Destroyed Lightning 22467 | -5/Hub_04(d) | Destroyed Lightning 22517 | -5/Hub_04(d) | Found Prototype Device 22518 | -5/Hub_04(d) | Identified Exp. EM Shield 22562 | -5/Hub_04(d) | Retrieved Zion intel report: Depthwide Sectors/-5 22610 | -5/Hub_04(d) | Retrieved Zion intel report: Unaware Schematics 22687 | -5/Hub_04(d) | Network Hub disabled 22711 | -5/Hub_04(d) | Spotted Lightning 22711 | -5/Hub_04(d) | Spotted Lightning 22712 | -5/Hub_04(d) | Spotted Lightning 22733 | -5/Hub_04(d) | Destroyed Lightning 22737 | -5/Hub_04(d) | Destroyed Lightning 22768 | -5/Hub_04(d) | Destroyed Lightning 22786 | -5/Hub_04(d) | Build established: Scavenger-Tank 22790 | -5/Hub_04(d) | Found Prototype Device 22791 | -5/Hub_04(d) | Identified Exp. Phase Shifter 22847 | -5/Hub_04(d) | Discovered exit to Factory (range 9) 22878 | -5/Hub_04(d) | Network Hub disabled 23036 | -5/Hub_04(d) | Retrieved Zion intel report: Prototype Schematics 23161 | -5/Hub_04(d) | Entered Factory 23161 | -4/Factory | Evolved 2 slots: Utility x2 23269 | -4/Factory | Zion Resource Resupply teleported in 23402 | -4/Factory | Garrison activated, responded to threat 23602 | -4/Factory | Garrison activated, responded to threat 23618 | -4/Factory | Retrieved Zion intel report: Component Stockpiles 23873 | -4/Factory | Fabricated Hvy. Gatling Laser (x1) 23907 | -4/Factory | Cargo convoy interrupted 23955 | -4/Factory | Found Prototype Launcher 23960 | -4/Factory | Fabricated Hvy. Gatling Laser (x1) 23990 | -4/Factory | Found Prototype Processor 23991 | -4/Factory | Identified Exp. Target Analyzer 23997 | -4/Factory | Found Prototype Processor 24001 | -4/Factory | Found Prototype Processor 24004 | -4/Factory | Found Prototype Device 24009 | -4/Factory | Watched by a mysterious "MATRIX" hacker. 24011 | -4/Factory | Identified Spectral Analyzer (x2) 24012 | -4/Factory | Identified Exp. ECM Suite 24014 | -4/Factory | Identified Com. Tesla Bomb Launcher 24093 | -4/Factory | Fabricated Hvy. Gatling Laser (x1) 24112 | -4/Factory | Destroyed 7 combat bots 24233 | -4/Factory | Garrison activated, responded to threat 24261 | -4/Factory | Build established: Hacker-Tank 24342 | -4/Factory | Found Quantum Capacitor 24348 | -4/Factory | Retrieved Zion intel report: Active Garrisons 24605 | -4/Factory | Build established: Scavenger-Tank 24830 | -4/Factory | Fabricated Hvy. Gatling Laser (x1) 24915 | -4/Factory | Fabricated Hvy. Gatling Laser (x1) 25000 | -4/Factory | Fabricated Hvy. Gatling Laser (x1) 25052 | -4/Factory | Garrison activated, responded to threat 25480 | -4/Factory | Fabricated Hvy. Gatling Laser (x1) 25732 | -4/Factory | Retrieved Zion intel report: Unaware Analyses 25758 | -4/Factory | Garrison activated, responded to threat 25922 | -4/Factory | Retrieved Zion intel report: Depthwide Sectors/-3 25961 | -4/Factory | Identified exit to Research 25961 | -4/Factory | Discovered exit to Research (range 6) 25983 | -4/Factory | Entered Research 25983 | -3/Research | Evolved 2 slots: Weapon x2 26126 | -3/Research | Repaired Quantum Reactor 26178 | -3/Research | Repaired Triangulator 26191 | -3/Research | Garrison activated, responded to threat 26503 | -3/Research | Zion Heavy squad teleported in 26523 | -3/Research | Build established: Scavenger-Executioner 26540 | -3/Research | Zion Hacker squad teleported in 26561 | -3/Research | Found Fusion Bomb Launcher 26688 | -3/Research | Fabricated Quantum Reactor (x2) 26753 | -3/Research | Found Zio. Weapon Casing 26856 | -3/Research | Repaired Centrium Heavy Treads 26958 | -3/Research | Lost 3 allies 26992 | -3/Research | Build established: Machinist-Executioner 27251 | -3/Research | Identified exit to Quarantine 27251 | -3/Research | Discovered exit to Quarantine (range 16) 27523 | -3/Research | Identified exit to Research 27523 | -3/Research | Discovered exit to Research (range 10) 27928 | -3/Research | Found Prototype Device 27930 | -3/Research | Identified Imp. Particle Accelerator 28161 | -3/Research | Retrieved Zion intel report: Prototype Stockpiles 28298 | -3/Research | Spotted B-86 Titan 28335 | -3/Research | Destroyed B-86 Titan 28512 | -3/Research | Retrieved Zion intel report: Prototype Schematics 28588 | -3/Research | Retrieved Zion intel report: Depthwide Sectors/-3 28607 | -3/Research | Retrieved Zion intel report: Trap Installations 28893 | -3/Research | Retrieved Zion intel report: Unaware Analyses 29033 | -3/Research | Retrieved Zion intel report: Main Access 29195 | -3/Research | Retrieved Zion intel report: Active Terminals 29565 | -3/Research | Fabricated Gatling Laser (x2) 30153 | -3/Research | Discovered exit to Quarantine (range 7) 30368 | -3/Research | Build established: Scavenger-Executioner 30983 | -3/Research | Terminal network hard line cut 31067 | -3/Research | Spotted B-86 Titan 31122 | -3/Research | Destroyed B-86 Titan 31143 | -3/Research | Destroyed 7 combat bots 31200 | -3/Research | Lost 6 parts (1p3u2w) 31285 | -3/Research | Identified exit to Armory 31285 | -3/Research | Discovered exit to Armory (range 6) 31295 | -3/Research | Found Prototype Device 31296 | -3/Research | Identified Exp. Thermal Shield 31320 | -3/Research | Entered Armory 31506 | -3/Armory | Destroyed 7 combat bots 31524 | -3/Armory | Found Prototype Launcher 31525 | -3/Armory | Identified Tactical Quantum Warhead 31729 | -3/Armory | Fabricated Gatling Laser (x2) 31776 | -3/Armory | Fabricated Gatling Laser (x2) 31921 | -3/Armory | Repaired Centrium Heavy Treads 31927 | -3/Armory | Unchained authorized (CL-0N3) 32011 | -3/Armory | Spotted B-86 Titan 32014 | -3/Armory | Destroyed B-86 Titan 32076 | -3/Armory | Fabricated Gatling Laser (x2) 32114 | -3/Armory | Energy Cycler disabled 32170 | -3/Armory | G-67 Veteran reconstituted as Alpha 7 32174 | -3/Armory | Destroyed Alpha 7 32174 | -3/Armory | Alpha 7 reconstituted as CL-0N3 32222 | -3/Armory | Spotted Armor Guard 32226 | -3/Armory | Spotted Armor Guard 32229 | -3/Armory | Destroyed Armor Guard 32241 | -3/Armory | Destroyed Armor Guard 32271 | -3/Armory | Spotted Armor Guard 32271 | -3/Armory | Spotted Armor Guard 32277 | -3/Armory | Destroyed Armor Guard 32281 | -3/Armory | Destroyed Armor Guard 32371 | -3/Armory | M-36 Artificer reconstituted as Quarantine Guard 32371 | -3/Armory | Spotted Quarantine Guard 32371 | -3/Armory | Destroyed Quarantine Guard 32371 | -3/Armory | Quarantine Guard reconstituted as CL-0N3 32425 | -3/Armory | Build established: Machinist-Executioner 32440 | -3/Armory | Assisted by bots powering up and referring to "LRC-V3" 32510 | -3/Armory | Fabricated Gatling Laser (x2) 32601 | -3/Armory | Retrieved Zion intel report: Emergency Access 32729 | -3/Armory | Lost 7 allies 32816 | -3/Armory | Discovered exit to Research (range 13) 32866 | -3/Armory | Fabricated Gatling Laser (x2) 32903 | -3/Armory | Fabricated Gatling Laser (x2) 32939 | -3/Armory | Fabricated Gatling Laser (x2) 33097 | -3/Armory | W-44 Eye reconstituted as Armor Guard 33097 | -3/Armory | Spotted Armor Guard 33097 | -3/Armory | Destroyed Armor Guard 33097 | -3/Armory | Armor Guard reconstituted as CL-0N3 33287 | -3/Armory | Fabricated M-30 Cleanser (x1) 33329 | -3/Armory | Retrieved Zion intel report: Unaware Analyses 33356 | -3/Armory | G-67 Veteran reconstituted as Access Guard 33356 | -3/Armory | Spotted Access Guard 33361 | -3/Armory | Destroyed Access Guard 33361 | -3/Armory | Access Guard reconstituted as CL-0N3 33396 | -3/Armory | Lost 3 allies 33674 | -3/Armory | H-77 Assassin reconstituted as S7 Guard 33674 | -3/Armory | Spotted S7 Guard 33679 | -3/Armory | Destroyed S7 Guard 33679 | -3/Armory | S7 Guard reconstituted as CL-0N3 33679 | -3/Armory | Destroyed CL-0N3 33694 | -3/Armory | Extracted schematics, analyses from CL-0N3's data core 33705 | -3/Armory | Lost 3 allies 33844 | -3/Armory | Destroyed 7 combat bots 33863 | -3/Armory | Retrieved Zion intel report: Unaware Schematics 33864 | -3/Armory | Zion Thermal Resupply teleported in 33919 | -3/Armory | Zion Offense Resupply teleported in 33966 | -3/Armory | Zion Zionite Resupply teleported in 33980 | -3/Armory | Found Prototype Energy Cannon 33981 | -3/Armory | Identified Zio. Alpha Cannon 34053 | -3/Armory | Zion Light squad teleported in 34282 | -3/Armory | P-80 Master assimilated allied PZ-PU7(z) 34286 | -3/Armory | P-80 Master assimilated allied PF-KZN(z) 34971 | -3/Armory | Entered Research 34971 | -2/Research | Evolved 2 slots: Propulsion x2 35094 | -2/Research | Identified exit to DSF 35094 | -2/Research | Entered DSF 35126 | -2/DSF | Additional patrols routed to DSF 35247 | -2/DSF | Sterilization system engaged 35249 | -2/DSF | Identified exit to Access 35249 | -2/DSF | Discovered exit to Access (range 16) 35267 | -2/DSF | Ambient heat levels rising (+10) 35282 | -2/DSF | Ambient heat levels rising (+10) 35297 | -2/DSF | Ambient heat levels rising (+10) 35312 | -2/DSF | Ambient heat levels rising (+10) 35327 | -2/DSF | Ambient heat levels rising (+10) 35342 | -2/DSF | Ambient heat levels rising (+10) 35348 | -2/DSF | Entered Access 35348 | -1/Access | Evolved 2 slots: Weapon x2 35702 | -1/Access | Garrison activated, responded to threat 35893 | -1/Access | Retrieved Zion intel report: Depthwide Sectors/-1 36073 | -1/Access | Fabricated Gatling Laser (x2) 36196 | -1/Access | Retrieved Zion intel report: Emergency Access 36346 | -1/Access | Spotted B-99 Colossus 36353 | -1/Access | Destroyed B-99 Colossus 36436 | -1/Access | Fabricated P-80 Master (x2) 36502 | -1/Access | Energy Cycler disabled 36655 | -1/Access | Retrieved Zion intel report: Prototype Stockpiles 36836 | -1/Access | Retrieved Zion intel report: Trap Installations 36837 | -1/Access | Zion Thermal Resupply teleported in 36865 | -1/Access | Zion Hover Resupply teleported in 36930 | -1/Access | Zion Zionite Resupply teleported in 36953 | -1/Access | System corruption reached 10% 37093 | -1/Access | Found Prototype Device 37094 | -1/Access | Identified Adv. Kinecellerator 37242 | -1/Access | Spotted B-99 Colossus 37243 | -1/Access | Zion Heavy squad teleported in 37253 | -1/Access | Destroyed B-99 Colossus 37571 | -1/Access | Zion Light squad teleported in 37586 | -1/Access | Garrison activated, responded to threat 37758 | -1/Access | Zion Hacker squad teleported in 37827 | -1/Access | Zion Thermal Resupply teleported in 37896 | -1/Access | Zion Experimental squad teleported in 37947 | -1/Access | Spotted B-99 Colossus 37949 | -1/Access | Destroyed B-99 Colossus 37994 | -1/Access | Found Prototype Protection 37995 | -1/Access | Identified Zio. Weapon Casing 37999 | -1/Access | Lost 5 allies 37999 | -1/Access | Found Prototype Protection 38000 | -1/Access | Identified Zio. Shade Armor 38098 | -1/Access | First assault squad dispatched 38256 | -1/Access | Zion Heavy squad teleported in 38749 | -1/Access | Garrison activated, responded to threat 38820 | -1/Access | Destroyed 8 combat bots 39101 | -1/Access | Retrieved Zion intel report: Active Terminals 39114 | -1/Access | Garrison activated, responded to threat 39168 | -1/Access | Sterilization system engaged 39174 | -1/Access | Destroyed 7 combat bots 39468 | -1/Access | Ambient heat levels rising (+10) 39618 | -1/Access | Ambient heat levels rising (+10) 39768 | -1/Access | Ambient heat levels rising (+10) 39918 | -1/Access | Ambient heat levels rising (+10) 40068 | -1/Access | Ambient heat levels rising (+10) 40218 | -1/Access | Ambient heat levels rising (+10) 40348 | -1/Access | Terminal network hard line cut 40368 | -1/Access | Ambient heat levels rising (+10) 40518 | -1/Access | Ambient heat levels rising (+10) 40668 | -1/Access | Ambient heat levels rising (+10) 40818 | -1/Access | Ambient heat levels rising (+10) 40968 | -1/Access | Ambient heat levels rising (+10) 41118 | -1/Access | Ambient heat levels rising (+10) 41268 | -1/Access | Ambient heat levels rising (+10) 41418 | -1/Access | Ambient heat levels rising (+10) 41465 | -1/Access | Identified exit to Surface 41465 | -1/Access | Discovered exit to Surface (range 14) 41568 | -1/Access | Ambient heat levels rising (+10) 41662 | *** | Escaped! Last Messages --------------- Web. 41659_ Overheating: System interference. 41659_ Adv. Heat Sink temporarily disabled. 41659_ Fusion Bomb Launcher+ temporarily disabled. 41660_ Power failure averted by Adv. Cryofiber Web. 41660_ Overheating: System interference. 41660_ Adv. Cryofiber Web temporarily disabled. 41660_ System interference averted by Adv. Cryofiber Web. 41661_ Power failure averted by Adv. Cryofiber Web. [Achievement: 30k Club] [Achievement: 40k Club] [Achievement: 50k Club] [Achievement: Torch] [Achievement: Derelict Escape] [Achievement: Victory By Combat] [Achievement: Death Machine] Map ----- +----------------------------------------------------+ | ???????## ^ #"""""""" #????????? | | ???????#" #"""""""" #????????? | | ???????% ^ ! # """"" #????????? | | ???????= # #????????? | | ??????### # ##???????# | | ????????# +% """Y""" ###?###### | | ????????? # """"" # # ! # | | ?????????###?########## # ## # | | ##########????????????# # # | | ????????#### ########## # # | | ????????# #?# #???? # | | ???????# ### #???? # | | ???????# ## #######+# | | // ???????# # + | | / ???????# % ### # ##### # | | / ???????# ## # #???# # | | ????????# # # # #???# # | | ###########????????#""""""" ## # #???# # | | #########???####?????????"" #### # # #???# # | | ] ]#### #####?????" #? # #### #???# # | | ] # #"""""" ## ?# #???# # | | ] + ## ### ?#+#####+# | | # # #?# ?# | | # # #?# ?# | | ######### # "" #?# ## | | # ## "@ #?# ## | | # # #?# ## | | # # #?# ## | | " " # # #?# ## | | "" " # "## ### ! / ## | | " " # ""# # ## | | # ""##" # ## | | ""# ""## " ## ## | | ""# "## ### ## % | | % ""# ####T #?# ## | | # #??#"" #?# ?# | | # #??#"" #?? ?# | | #######+####+#######"" #####+##+##########+ | | ???# %! *% % % | | ???# % | | ???# #+###+#######################/############## | | ##?# # #?????????????????# #?? | | #?# # !] #?????????????????# #?? | | ### ]] #?????????????????# #?? | | % ] #?????????????????# #?? | | #?????????????????# #?? | | ##????????????????# #?? | | = ##???????????????# #?? | | # ##??????????????# #?? | | = #??????????????# ? #?? | +----------------------------------------------------+ Best States ------------- Heat Dissipation 204 Coolant Potential 100 Energy Generation 57 Energy Capacity 1200 Matter Stores 300 Matter Capacity 300 Sight Range 18 Terrain Scan Density 10 Jamming Range 16 Cloak Strength 2 Power Amplification 30 Additional Mass Support 16 Base Temperature (-) 200 Armor Coverage 400 Resistance: KI 65 Resistance: TH 65 Resistance: EX 65 Resistance: EM 100 Resistance: I 65 Resistance: S 65 Resistance: P 65 Core Shielding 30 Power Shielding 66 Weapon Shielding 100 Weapon Cycling 30 Phase Shifting 20 Evasion (%) 60 Targeting Accuracy 16 Recoil Reduction 6 Energy Filtering 50 Particle Charging 40 Offensive Hacking 20 Item Schematics ----------------- Plasma Cannon | -7/Factory | Scanalyzed Ion Cannon | -7/Factory | Scanalyzed Hvy. Particle Cannon | -7/Factory | Scanalyzed Beamcaster | -7/Factory | Scanalyzed Imp. Launcher Guidance Computer | -7/Factory | Hacked Wheel | -7/Factory | Hacked Med. Treads | -7/Zion | Archive Plasma Rifle | -7/Zion | Archive Flak Gun | -7/Zion | Archive Thermic Laser | -7/Zion | Archive Hvy. Rocket Launcher | -7/Zion | Archive Power Amplifier | -7/Zion | Archive Matter Filter | -7/Zion | Archive Adv. Cooling System | -7/Zion | Archive Arm. Medium Treads | -7/Zion | Archive Gauss Cannon | -7/Zion | Archive Lyr. Medium Armor Plating | -7/Zion | Archive Adv. ECM Suite | -7/Zion | Archive Proton Missile Launcher | -7/Zion | Archive Force Field | -6/Factory | Scanalyzed Gatling Laser | -6/Factory | Scanalyzed Phase Shifter | -6/Factory | Scanalyzed Hvy. Gatling Laser | -5/Factory | Scanalyzed Adv. Shield Generator | -5/Factory | Scanalyzed Imp. Hardlight Generator | -5/Factory | Scanalyzed Hvy. Laser | -5/Hub_04(d) | Z-intel Imp. Thermal Generator | -5/Hub_04(d) | Z-intel Gravmag Array | -5/Hub_04(d) | Z-intel Imp. Arc Projector | -5/Hub_04(d) | Z-intel Hpw. Shock Rifle | -5/Hub_04(d) | Z-intel Remote Shield | -5/Hub_04(d) | Z-intel Linear Gravjet | -5/Hub_04(d) | Z-intel Imp. Coolant Injector | -5/Hub_04(d) | Z-intel Imp. Plasma Cutter | -5/Hub_04(d) | Z-intel Hvy. Phase Cannon | -5/Hub_04(d) | Z-intel Imp. Recalibrator | -5/Hub_04(d) | Z-intel Imp. Thermal Shield | -5/Hub_04(d) | Z-intel Targeting Computer | -5/Hub_04(d) | Z-intel Imp. Terrain Scan Processor | -5/Hub_04(d) | Z-intel Enh. Fission Core | -5/Hub_04(d) | Z-intel Imp. Energy Well | -5/Hub_04(d) | Z-intel Lgt. Neutrino Core | -5/Hub_04(d) | Z-intel Cld. Plasma Rifle | -5/Hub_04(d) | Z-intel Imp. Spread Laser | -5/Hub_04(d) | Z-intel Imp. Heavy Machine Gun | -5/Hub_04(d) | Z-intel Imp. KE Penetrator | -5/Hub_04(d) | Z-intel Mni. Smartbomb Launcher | -5/Hub_04(d) | Z-intel Gravity Neutralizer | -5/Hub_04(d) | Z-intel Enh. Armored Leg | -5/Hub_04(d) | Z-intel Cld. Plasma Cannon | -5/Hub_04(d) | Z-intel Cld. Nuclear Pulse Thruster | -5/Hub_04(d) | Z-intel Hvy. Proton Missile Launcher | -5/Hub_04(d) | Z-intel Cld. Gravmag System | -5/Hub_04(d) | Z-intel Enh. Flexi-carbon Leg | -5/Hub_04(d) | Z-intel Cld. Pulse Rifle | -5/Hub_04(d) | Z-intel Enh. Force Rifle | -5/Hub_04(d) | Z-intel Imp. Matter Compressor | -5/Hub_04(d) | Z-intel Ionic Axe | -5/Hub_04(d) | Z-intel Cld. Particle Cannon | -5/Hub_04(d) | Z-intel Imp. Lightning Gun | -5/Hub_04(d) | Z-intel Com. Mass Driver | -3/Research | Z-intel Mni. Fusion Reactor | -3/Research | Z-intel Exp. Thermal Defense Suite | -3/Research | Z-intel Particle Accelerator | -3/Research | Z-intel Cld. Phase Gun | -3/Research | Z-intel Exp. EM Disruption Field | -3/Research | Z-intel Prc. Phase Gun | -3/Research | Z-intel Exp. Myomer Leg | -3/Research | Z-intel Cld. Phase Cannon | -3/Research | Z-intel Enh. Coil Gun | -3/Research | Z-intel Robot Schematics ------------------ K-01 Serf | -7/Zion | Archive A-02 Transporter | -7/Zion | Archive L-41 Fighter | -7/Zion | Archive O-24 Administrator | -6/Factory | Z-intel A-15 Conveyor | -6/Factory | Z-intel G-50 Soldier | -6/Factory | Z-intel M-28 Smith | -6/Factory | Z-intel W-25 Informer | -6/Factory | Z-intel T-07 Excavator | -6/Factory | Z-intel R-10 Processor | -6/Factory | Z-intel M-14 Sweeper | -6/Factory | Z-intel R-06 Scavenger | -6/Factory | Z-intel X-67 Chaingunner | -5/Hub_04(d) | Z-intel B-60 Warrior | -5/Hub_04(d) | Z-intel E-15 Imp | -5/Hub_04(d) | Z-intel S-27 Virus | -5/Hub_04(d) | Z-intel M-22 Extractor | -3/Armory | Archive M-30 Cleanser | -3/Armory | Archive M-13 Machinist | -3/Armory | Archive M-36 Artificer | -3/Armory | Archive O-16 Technician | -3/Armory | Archive O-32 Director | -3/Armory | Archive W-16 Scout | -3/Armory | Archive W-44 Eye | -3/Armory | Archive S-10 Pest | -3/Armory | Archive S-43 Plague | -3/Armory | Archive G-34 Mercenary | -3/Armory | Archive G-47 Trooper | -3/Armory | Archive G-67 Veteran | -3/Armory | Archive G-73 Enforcer | -3/Armory | Archive B-36 Bruiser | -3/Armory | Archive B-48 Gladiator | -3/Armory | Archive B-74 Champion | -3/Armory | Archive L-31 Rogue | -3/Armory | Archive L-61 Swordsman | -3/Armory | Archive Y-45 Defender | -3/Armory | Archive Y-54 Guardian | -3/Armory | Archive Y-64 Sentinel | -3/Armory | Archive Y-72 Warden | -3/Armory | Archive D-53 Grenadier | -3/Armory | Archive D-63 Destroyer | -3/Armory | Archive D-83 Annihilator | -3/Armory | Archive X-57 Shotgunner | -3/Armory | Archive X-62 Marksman | -3/Armory | Archive X-72 Disruptor | -3/Armory | Archive X-77 Beamer | -3/Armory | Archive X-82 Rainmaker | -3/Armory | Archive X-87 Electro | -3/Armory | Archive H-55 Commando | -3/Armory | Archive H-66 Slayer | -3/Armory | Archive H-77 Assassin | -3/Armory | Archive H-88 Terminator | -3/Armory | Archive P-60 Hacker | -3/Armory | Archive P-70 Sage | -3/Armory | Archive P-80 Master | -3/Armory | Archive C-55 Analyst | -3/Armory | Z-intel A-27 Freighter | -3/Armory | Z-intel I-47 Archangel | -3/Armory | Z-intel Fabricated ------------ Plasma Rifle | x2 | -6/Factory K-01 Serf | x4 | -6/Factory Gatling Laser | x2 | -5/Factory Gatling Laser | x2 | -5/Factory Gatling Laser | x2 | -5/Factory Hvy. Gatling Laser | x1 | -5/Factory Hvy. Gatling Laser | x1 | -4/Factory Hvy. Gatling Laser | x1 | -4/Factory Hvy. Gatling Laser | x1 | -4/Factory Hvy. Gatling Laser | x1 | -4/Factory Hvy. Gatling Laser | x1 | -4/Factory Hvy. Gatling Laser | x1 | -4/Factory Hvy. Gatling Laser | x1 | -4/Factory Quantum Reactor | x2 | -3/Research | Preloaded Gatling Laser | x2 | -3/Research Gatling Laser | x2 | -3/Armory Gatling Laser | x2 | -3/Armory Gatling Laser | x2 | -3/Armory Gatling Laser | x2 | -3/Armory Gatling Laser | x2 | -3/Armory Gatling Laser | x2 | -3/Armory Gatling Laser | x2 | -3/Armory M-30 Cleanser | x1 | -3/Armory | Preloaded Gatling Laser | x2 | -1/Access P-80 Master | x2 | -1/Access Repaired ---------- Nuclear Core | 53% | -8/Materials Lgt. Treads | 65% | -7/Factory Quantum Reactor | 11% | -3/Research Triangulator | 17% | -3/Research Centrium Heavy Treads | 45% | -3/Research Centrium Heavy Treads | 5% | -3/Armory Studied --------- Deuterium Engine | -8/Materials | Hacked Nuclear Core | -8/Materials | Hacked Lgt. Treads | -8/Materials | Hacked Wheel | -8/Materials | Hacked Ion Cannon | -8/Materials | Hacked Hvy. Particle Cannon | -7/Factory | Hacked Plasma Cannon | -7/Factory | Hacked Arm. Treads | -7/Factory | Hacked Imp. Treads | -7/Factory | Hacked Gatling Laser | -6/Factory | Hacked Fission Core | -6/Factory | Hacked Imp. Medium Treads | -6/Factory | Hacked Plasma Rifle | -6/Factory | Hacked Adv. Treads | -6/Factory | Hacked Arm. Huge Wheel | -5/Factory | Hacked Imp. Plasma Cutter | -5/Factory | Hacked Lgt. Quantum Reactor | -1/Access | Hacked Phase Gun | -1/Access | Hacked Fusion Bomb Launcher | -1/Access | Hacked Biometal Heavy Treads | -1/Access | Hacked Alien Tech Used ----------------- None Achievements -------------- 30k Club 404 40k Club 50k Club Beloved Better Safe Than Exploded Bigger And Badder Can't Touch This Death Machine Derelict Escape Ew, Corruption Executioner Explorer Explosive Keycard Freeware Friend Of Zion Generalissimo Giant Slayer Gun Specialist Gunslinger Heroic Deeds Ooh, Shiny! Out Of My Way Production Line Pyromaniac Revising The Future Superinsulated Tank The Better Part Of Valor Torch Victory By Combat Challenges ------------ None Game ------ Seed ResetDecoyChaincannon Manual? 0 Play Time 06:57:10 Cumulative 40.9 hours Start 2026.04.17 @ 23:44:30 End 2026.04.20 @ 22:43:08 Sessions 5 Manual Loads 0 Difficulty Explorer Special Mode None Game No. 52 Rogue 44 Adventurer 3 Explorer 5 Win Type 0 Total 2 Types 2/0/0/0/0/0/0/0/0/0 Lore% 32 Gallery% 34 Achievement% 37 Wizard Run 0 Options --------- Layout 1 ASCII 0 Keyboard 0 Movement Numpad Keybinds 0 Fullscreen 2 Font 24/Proggy Map View 50x35 Zoom Use 0% Tactical HUD 1 Map Filters NONE Filters NONE Steam 1 RUN: 24d644e3-db31-435e-9e4c-f7cbbce399e2